Department family,Entity,Date,Expense type,Expense area,Supplier,Transaction number,Amount,VAT registration number
Department for Business Energy and Industrial Strategy,Intellectual Property Office,01/02/2022,Supporting UK Business,Innovation Directorate,Innovative Ash Solutions Ltd,IPACC0019,"3,330.00",Not Applicable
Department for Business Energy and Industrial Strategy,Intellectual Property Office,08/02/2022,Supporting UK Business,Innovation Directorate,BigPicture Learning Ltd t/a The Big Pict,IPACC0020,"4,850.00",Not Applicable
Department for Business Energy and Industrial Strategy,Intellectual Property Office,17/02/2022,Supporting UK Business,Innovation Directorate,Innstay UK,IPACC0021,"4,000.00",Not Applicable
Department for Business Energy and Industrial Strategy,Intellectual Property Office,17/02/2022,Supporting UK Business,Innovation Directorate,WorkSafe Design Limited,IPACC0022,"4,983.00",Not Applicable
Department for Business Energy and Industrial Strategy,Intellectual Property Office,21/02/2022,Supporting UK Business,Innovation Directorate,i2r Medical Ltd,IPACC0023,"4,383.00",Not Applicable
Department for Business Energy and Industrial Strategy,Intellectual Property Office,22/02/2022,Supporting UK Business,Innovation Directorate,Aware Technologies Ltd,IPACC0024,"4,500.00",Not Applicable
Department for Business Energy and Industrial Strategy,Intellectual Property Office,10/02/2022,Pay Costs,Patent Directorate,Acorn Recruitment Ltd,997739,693.08,Not Applicable
Department for Business Energy and Industrial Strategy,Intellectual Property Office,14/02/2022,Pay Costs,Patent Directorate,Acorn Recruitment Ltd,998232,693.08,Not Applicable
Department for Business Energy and Industrial Strategy,Intellectual Property Office,28/02/2022,Pay Costs,Patent Directorate,Acorn Recruitment Ltd,998717,693.08,Not Applicable
Department for Business Energy and Industrial Strategy,Intellectual Property Office,04/02/2022,Office Supplies,People Places & Serv Directorate,Banner Group Limited,7800521A,"1,117.78",Not Applicable
Department for Business Energy and Industrial Strategy,Intellectual Property Office,08/02/2022,Telecoms,IT Directorate,British  Telecom,48052270AC01-JUN,"9,005.78",Not Applicable
Department for Business Energy and Industrial Strategy,Intellectual Property Office,24/02/2022,Telecoms,IT Directorate,British  Telecom,VP02239170FEB22,"1,634.70",Not Applicable
Department for Business Energy and Industrial Strategy,Intellectual Property Office,14/02/2022,Telecoms,IT Directorate,British  Telecom,WM41963919-JAN22,"1,546.00",Not Applicable
Department for Business Energy and Industrial Strategy,Intellectual Property Office,11/02/2022,Telecoms,IT Directorate,British  Telecom,WM42102445-JAN22,"2,968.00",Not Applicable
Department for Business Energy and Industrial Strategy,Intellectual Property Office,03/02/2022,Office Supplies,Patent Directorate,British Library,7000293213,"2,176.17",Not Applicable
Department for Business Energy and Industrial Strategy,Intellectual Property Office,02/02/2022,Staff Costs,People Places & Serv Directorate,Cabinet Office,3814588,"4,022.88",Not Applicable
Department for Business Energy and Industrial Strategy,Intellectual Property Office,15/02/2022,Miscellaneous Expenses General,People Places & Serv Directorate,Cabinet Office,3814857,"1,575.00",Not Applicable
Department for Business Energy and Industrial Strategy,Intellectual Property Office,11/02/2022,Accommodation,People Places & Serv Directorate,Caerphilly County Borough Council,510317691-MAR21-,"35,845.00",Not Applicable
Department for Business Energy and Industrial Strategy,Intellectual Property Office,11/02/2022,Accommodation,People Places & Serv Directorate,Caerphilly County Borough Council,510317691-MAR21C,-535.00,Not Applicable
Department for Business Energy and Industrial Strategy,Intellectual Property Office,15/02/2022,Miscellaneous Expenses General,People Places & Serv Directorate,Capital Law LLP,60019336,"3,704.40",Not Applicable
Department for Business Energy and Industrial Strategy,Intellectual Property Office,09/02/2022,Staff Costs,People Places & Serv Directorate,Computeraid Ltd,22590,"2,604.00",Not Applicable
Department for Business Energy and Industrial Strategy,Intellectual Property Office,17/02/2022,Accommodation,People Places & Serv Directorate,Corona Energy,16738647,"13,448.66",Not Applicable
Department for Business Energy and Industrial Strategy,Intellectual Property Office,17/02/2022,Accommodation,People Places & Serv Directorate,Corona Energy,16738648,"4,449.36",Not Applicable
Department for Business Energy and Industrial Strategy,Intellectual Property Office,03/02/2022,Supporting UK Business,Innovation Directorate,Dehns,1012148,"5,000.00",Not Applicable
Department for Business Energy and Industrial Strategy,Intellectual Property Office,04/02/2022,Postage & Delivery Costs,People Places & Serv Directorate,DHL International (UK) Ltd,BRSR005530312,"5,086.40",Not Applicable
Department for Business Energy and Industrial Strategy,Intellectual Property Office,09/02/2022,Postage & Delivery Costs,People Places & Serv Directorate,DHL International (UK) Ltd,BRSR005557726,"2,592.67",Not Applicable
Department for Business Energy and Industrial Strategy,Intellectual Property Office,17/02/2022,Postage & Delivery Costs,People Places & Serv Directorate,DHL International (UK) Ltd,BRSR005578891,"2,653.87",Not Applicable
Department for Business Energy and Industrial Strategy,Intellectual Property Office,02/02/2022,Legal & Hearings,Trade Mark Directorate,Eversheds Sutherland (Internationa,92043999,693.43,Not Applicable
Department for Business Energy and Industrial Strategy,Intellectual Property Office,25/02/2022,Accommodation,People Places & Serv Directorate,Pro Investments Limited,176779,"24,750.00",Not Applicable
Department for Business Energy and Industrial Strategy,Intellectual Property Office,25/02/2022,Accommodation,People Places & Serv Directorate,Pro Investments Limited,176780,"2,045.95",Not Applicable
Department for Business Energy and Industrial Strategy,Intellectual Property Office,09/02/2022,Pay Costs,Copyright and Enforcement Directorate,Home  Office,2594509,"2,403.50",Not Applicable
Department for Business Energy and Industrial Strategy,Intellectual Property Office,09/02/2022,Pay Costs,Copyright and Enforcement Directorate,Home  Office,2594535,"4,622.40",Not Applicable
Department for Business Energy and Industrial Strategy,Intellectual Property Office,10/02/2022,Staff Costs,IT Directorate,Michael Page International Recruitment L,INAD10089057,"4,867.78",Not Applicable
Department for Business Energy and Industrial Strategy,Intellectual Property Office,24/02/2022,Staff Costs,IT Directorate,Michael Page International Recruitment L,INAD10091378,"5,117.90",Not Applicable
Department for Business Energy and Industrial Strategy,Intellectual Property Office,02/02/2022,Postage & Delivery Costs,People Places & Serv Directorate,Quadient UK Limited,2022005536,"5,261.80",Not Applicable
Department for Business Energy and Industrial Strategy,Intellectual Property Office,09/02/2022,Information Technology,People Places & Serv Directorate,Quadient UK Limited,2022007812,"5,261.80",Not Applicable
Department for Business Energy and Industrial Strategy,Intellectual Property Office,01/02/2022,Pay Costs,People Places & Serv Directorate,Park Retail Ltd t/a Love2reward,57068495,"5,272.40",Not Applicable
Department for Business Energy and Industrial Strategy,Intellectual Property Office,02/02/2022,Pay Costs,People Places & Serv Directorate,Park Retail Ltd t/a Love2reward,57077931,"1,146.60",Not Applicable
Department for Business Energy and Industrial Strategy,Intellectual Property Office,08/02/2022,Pay Costs,People Places & Serv Directorate,Park Retail Ltd t/a Love2reward,57093233,"4,797.10",Not Applicable
Department for Business Energy and Industrial Strategy,Intellectual Property Office,16/02/2022,Pay Costs,People Places & Serv Directorate,Park Retail Ltd t/a Love2reward,57116691,"4,419.80",Not Applicable
Department for Business Energy and Industrial Strategy,Intellectual Property Office,24/02/2022,Pay Costs,People Places & Serv Directorate,Park Retail Ltd t/a Love2reward,57139608,"1,112.30",Not Applicable
Department for Business Energy and Industrial Strategy,Intellectual Property Office,04/02/2022,Postage & Delivery Costs,People Places & Serv Directorate,Royal Mail,9064393909,"1,147.31",Not Applicable
Department for Business Energy and Industrial Strategy,Intellectual Property Office,15/02/2022,Postage & Delivery Costs,People Places & Serv Directorate,Royal Mail,9064438213,"1,400.92",Not Applicable
Department for Business Energy and Industrial Strategy,Intellectual Property Office,28/02/2022,Postage & Delivery Costs,People Places & Serv Directorate,Royal Mail,9064520842,"2,089.87",Not Applicable
Department for Business Energy and Industrial Strategy,Intellectual Property Office,21/02/2022,Supporting UK Business,Innovation Directorate,Simmons & Simmons Ltd,GB011144412,"2,500.00",Not Applicable
Department for Business Energy and Industrial Strategy,Intellectual Property Office,14/02/2022,Information Technology,IT Directorate,Specialist Computer Centres Plc,OP/N108940,"1,359.11",Not Applicable
Department for Business Energy and Industrial Strategy,Intellectual Property Office,25/02/2022,Information Technology,IT Directorate,Specialist Computer Centres Plc,OP/N114378,608.26,Not Applicable
Department for Business Energy and Industrial Strategy,Intellectual Property Office,07/02/2022,Information Technology,IT Directorate,Trustmarque Solutions Ltd,2334641,"14,945.40",Not Applicable
Department for Business Energy and Industrial Strategy,Intellectual Property Office,24/02/2022,Office Machinery,People Places & Serv Directorate,Xerox Finance,97559841,"2,557.08",Not Applicable
Department for Business Energy and Industrial Strategy,Intellectual Property Office,24/02/2022,Office Machinery,People Places & Serv Directorate,Xerox Finance,97560073,"2,983.45",Not Applicable
Department for Business Energy and Industrial Strategy,Intellectual Property Office,04/02/2022,Office Supplies,People Places & Serv Directorate,Antalis UK Ltd,2220838,"3,187.64",Not Applicable
Department for Business Energy and Industrial Strategy,Intellectual Property Office,14/02/2022,Information Technology,IT Directorate,Computacenter (UK) ltd,3883272105,"88,647.60",Not Applicable
Department for Business Energy and Industrial Strategy,Intellectual Property Office,10/02/2022,Other FA at Cost,IT Directorate,Computacenter (UK) ltd,3883276364,"20,399.58",Not Applicable
Department for Business Energy and Industrial Strategy,Intellectual Property Office,14/02/2022,Other FA at Cost,IT Directorate,Computacenter (UK) ltd,3883390478,"3,806.18",Not Applicable
Department for Business Energy and Industrial Strategy,Intellectual Property Office,14/02/2022,Other FA at Cost,IT Directorate,Computacenter (UK) ltd,3883400711,"-3,806.18",Not Applicable
Department for Business Energy and Industrial Strategy,Intellectual Property Office,14/02/2022,Other FA at Cost,IT Directorate,Computacenter (UK) ltd,3883402603,"-20,399.58",Not Applicable
Department for Business Energy and Industrial Strategy,Intellectual Property Office,01/02/2022,Supporting UK Business,Innovation Directorate,Marks & Clerk LLP,5250199,"5,000.00",Not Applicable
Department for Business Energy and Industrial Strategy,Intellectual Property Office,15/02/2022,Supporting UK Business,Innovation Directorate,Marks & Clerk LLP,5258382,"2,500.00",Not Applicable
Department for Business Energy and Industrial Strategy,Intellectual Property Office,03/02/2022,Supporting UK Business,Innovation Directorate,Marks & Clerk LLP,7151577,"5,000.00",Not Applicable
Department for Business Energy and Industrial Strategy,Intellectual Property Office,01/02/2022,Supporting UK Business,Innovation Directorate,Mewburn  Ellis LLP,219695,"4,976.06",Not Applicable
Department for Business Energy and Industrial Strategy,Intellectual Property Office,15/02/2022,Supporting UK Business,Innovation Directorate,Mewburn  Ellis LLP,220918,"2,500.00",Not Applicable
Department for Business Energy and Industrial Strategy,Intellectual Property Office,08/02/2022,Telecoms,IT Directorate,Vodafone Corporate Ltd,100259043,"1,535.92",Not Applicable
Department for Business Energy and Industrial Strategy,Intellectual Property Office,04/02/2022,Supporting UK Business,International Policy Directorate,Foreign & Commonwealth and Development O,1141816,"58,142.86",Not Applicable
Department for Business Energy and Industrial Strategy,Intellectual Property Office,11/02/2022,Supporting UK Business,International Policy Directorate,Foreign & Commonwealth and Development O,1142083,"3,219.37",Not Applicable
Department for Business Energy and Industrial Strategy,Intellectual Property Office,15/02/2022,Supporting UK Business,International Policy Directorate,Foreign & Commonwealth and Development O,1142278,"1,301.41",Not Applicable
Department for Business Energy and Industrial Strategy,Intellectual Property Office,28/02/2022,Supporting UK Business,International Policy Directorate,Foreign & Commonwealth and Development O,1142512,"50,845.05",Not Applicable
Department for Business Energy and Industrial Strategy,Intellectual Property Office,14/02/2022,Postage & Delivery Costs,People Places & Serv Directorate,RICO LOGISTICS LTD,SINRLLFS00352628,"1,901.71",Not Applicable
Department for Business Energy and Industrial Strategy,Intellectual Property Office,22/02/2022,Postage & Delivery Costs,People Places & Serv Directorate,RICO LOGISTICS LTD,SINRLLFS00355040,"1,670.02",Not Applicable
Department for Business Energy and Industrial Strategy,Intellectual Property Office,09/02/2022,Telecoms,IT Directorate,VIRGIN MEDIA,91728-FEB22,734.30,Not Applicable
Department for Business Energy and Industrial Strategy,Intellectual Property Office,03/02/2022,Supporting UK Business,Innovation Directorate,LAWRIE INTELLECTUAL PROPERTY,122458,"2,500.00",Not Applicable
Department for Business Energy and Industrial Strategy,Intellectual Property Office,21/02/2022,Supporting UK Business,Innovation Directorate,LAWRIE INTELLECTUAL PROPERTY,122561,"1,200.00",Not Applicable
Department for Business Energy and Industrial Strategy,Intellectual Property Office,15/02/2022,Supporting UK Business,Innovation Directorate,LAWRIE INTELLECTUAL PROPERTY,122577,"5,000.00",Not Applicable
Department for Business Energy and Industrial Strategy,Intellectual Property Office,21/02/2022,Supporting UK Business,Innovation Directorate,LAWRIE INTELLECTUAL PROPERTY,122606,"1,680.00",Not Applicable
Department for Business Energy and Industrial Strategy,Intellectual Property Office,21/02/2022,Supporting UK Business,Innovation Directorate,LAWRIE INTELLECTUAL PROPERTY,122608,"2,760.00",Not Applicable
Department for Business Energy and Industrial Strategy,Intellectual Property Office,21/02/2022,Supporting UK Business,Innovation Directorate,LAWRIE INTELLECTUAL PROPERTY,122622,"-1,200.00",Not Applicable
Department for Business Energy and Industrial Strategy,Intellectual Property Office,21/02/2022,Supporting UK Business,Innovation Directorate,LAWRIE INTELLECTUAL PROPERTY,122623,558.00,Not Applicable
Department for Business Energy and Industrial Strategy,Intellectual Property Office,17/02/2022,Supporting UK Business,Innovation Directorate,INNGOT LTD,T22-01-5,"5,000.00",Not Applicable
Department for Business Energy and Industrial Strategy,Intellectual Property Office,23/02/2022,Supporting UK Business,Innovation Directorate,INNGOT LTD,T22-02-1,"2,500.00",Not Applicable
Department for Business Energy and Industrial Strategy,Intellectual Property Office,21/02/2022,Supporting UK Business,Innovation Directorate,STEPHENS SCOWN LLP,167076,"2,500.00",Not Applicable
Department for Business Energy and Industrial Strategy,Intellectual Property Office,25/02/2022,Supporting UK Business,Innovation Directorate,STEPHENS SCOWN LLP,167199,"2,500.00",Not Applicable
Department for Business Energy and Industrial Strategy,Intellectual Property Office,03/02/2022,Pay Costs,Finance Directorate,Accountancy Recruitment Wales Ltd,999769,"1,260.00",Not Applicable
Department for Business Energy and Industrial Strategy,Intellectual Property Office,03/02/2022,Pay Costs,Finance Directorate,Accountancy Recruitment Wales Ltd,999770,"2,188.37",Not Applicable
Department for Business Energy and Industrial Strategy,Intellectual Property Office,11/02/2022,Pay Costs,Finance Directorate,Accountancy Recruitment Wales Ltd,999772,"1,260.00",Not Applicable
Department for Business Energy and Industrial Strategy,Intellectual Property Office,15/02/2022,Pay Costs,Finance Directorate,Accountancy Recruitment Wales Ltd,999773,"2,311.66",Not Applicable
Department for Business Energy and Industrial Strategy,Intellectual Property Office,24/02/2022,Pay Costs,Finance Directorate,Accountancy Recruitment Wales Ltd,999777,"1,260.00",Not Applicable
Department for Business Energy and Industrial Strategy,Intellectual Property Office,21/02/2022,Pay Costs,Finance Directorate,Accountancy Recruitment Wales Ltd,999778,"2,311.66",Not Applicable
Department for Business Energy and Industrial Strategy,Intellectual Property Office,25/02/2022,Pay Costs,Finance Directorate,Accountancy Recruitment Wales Ltd,999783,"2,280.83",Not Applicable
Department for Business Energy and Industrial Strategy,Intellectual Property Office,28/02/2022,Pay Costs,Finance Directorate,Accountancy Recruitment Wales Ltd,999784,"1,243.20",Not Applicable
Department for Business Energy and Industrial Strategy,Intellectual Property Office,10/02/2022,Postage & Delivery Costs,People Places & Serv Directorate,CitySprint (UK) Ltd,3852918,"5,921.64",Not Applicable
Department for Business Energy and Industrial Strategy,Intellectual Property Office,28/02/2022,Supporting UK Business,Innovation Directorate,N.J.AKERS & CO LTD,223026,"2,500.00",Not Applicable
Department for Business Energy and Industrial Strategy,Intellectual Property Office,03/02/2022,Information Technology,IT Directorate,SANDHILL CONSULTANTS LTD,IN4060468,"45,557.35",Not Applicable
Department for Business Energy and Industrial Strategy,Intellectual Property Office,15/02/2022,Accommodation,People Places & Serv Directorate,EDF ENERGY,11561491,"25,103.53",Not Applicable
Department for Business Energy and Industrial Strategy,Intellectual Property Office,14/02/2022,Accommodation,People Places & Serv Directorate,EDF ENERGY,11561552,"1,235.75",Not Applicable
Department for Business Energy and Industrial Strategy,Intellectual Property Office,17/02/2022,Supporting UK Business,Copyright and Enforcement Directorate,DAN ANTHONY PRESENTATIONS LTD,232,"1,600.00",Not Applicable
Department for Business Energy and Industrial Strategy,Intellectual Property Office,15/02/2022,Staff Costs,People Places & Serv Directorate,Sodexo Motivation Solutions UK Ltd,3792130,"1,452.54",Not Applicable
Department for Business Energy and Industrial Strategy,Intellectual Property Office,17/02/2022,Staff Costs,People Places & Serv Directorate,Sodexo Motivation Solutions UK Ltd,3792135,"3,646.24",Not Applicable
Department for Business Energy and Industrial Strategy,Intellectual Property Office,14/02/2022,Telecoms,IT Directorate,EE Ltd,1287269576,901.07,Not Applicable
Department for Business Energy and Industrial Strategy,Intellectual Property Office,25/02/2022,Telecoms,IT Directorate,EE Ltd,1287407892,805.08,Not Applicable
Department for Business Energy and Industrial Strategy,Intellectual Property Office,04/02/2022,Telecoms,IT Directorate,Personal expenses,UK10/012022/1555,"2,238.11",Not Applicable
Department for Business Energy and Industrial Strategy,Intellectual Property Office,04/02/2022,Telecoms,IT Directorate,Personal expenses,UK10/122021/8727,"2,238.11",Not Applicable
Department for Business Energy and Industrial Strategy,Intellectual Property Office,21/02/2022,Supporting UK Business,Innovation Directorate,Harrison Clark Rickerbys Ltd,520872,"2,500.00",Not Applicable
Department for Business Energy and Industrial Strategy,Intellectual Property Office,22/02/2022,Office Supplies,Patent Directorate,Euromoney,INV-EMT60239957,"12,348.00",Not Applicable
Department for Business Energy and Industrial Strategy,Intellectual Property Office,17/02/2022,Supporting UK Business,Innovation Directorate,Murgitroyd & Company Ltd,05020A-22,"5,000.00",Not Applicable
Department for Business Energy and Industrial Strategy,Intellectual Property Office,21/02/2022,Supporting UK Business,Innovation Directorate,Murgitroyd & Company Ltd,06079M-22,"2,500.00",Not Applicable
Department for Business Energy and Industrial Strategy,Intellectual Property Office,21/02/2022,Supporting UK Business,Innovation Directorate,Murgitroyd & Company Ltd,06143S-22,"2,500.00",Not Applicable
Department for Business Energy and Industrial Strategy,Intellectual Property Office,07/02/2022,Staff Costs,People Places & Serv Directorate,The Clive Davis Partnership Ltd.,CDSC/3485,"2,040.00",Not Applicable
Department for Business Energy and Industrial Strategy,Intellectual Property Office,10/02/2022,Supporting UK Business,Patent Directorate,Web Usability Partnership Ltd,1923,"28,170.00",Not Applicable
Department for Business Energy and Industrial Strategy,Intellectual Property Office,09/02/2022,Supporting UK Business,Innovation Directorate,DAC Beachcroft LLP,01-10047606,"2,500.00",Not Applicable
Department for Business Energy and Industrial Strategy,Intellectual Property Office,11/02/2022,Miscellaneous Expenses General,Patent Directorate,European Patent Office,40306538,"445,084.26",Not Applicable
Department for Business Energy and Industrial Strategy,Intellectual Property Office,25/02/2022,Information Technology,Patent Directorate,European Patent Office,40306643,"118,010.46",Not Applicable
Department for Business Energy and Industrial Strategy,Intellectual Property Office,03/02/2022,Supporting UK Business,Innovation Directorate,IPConsult,17195,"4,999.20",Not Applicable
Department for Business Energy and Industrial Strategy,Intellectual Property Office,28/02/2022,Accommodation,People Places & Serv Directorate,Magscapes Ltd,INV-2955,"3,110.40",Not Applicable
Department for Business Energy and Industrial Strategy,Intellectual Property Office,16/02/2022,Marketing & Publicity,Innovation Directorate,FUTURE PUBLISHING LIMITED,FPL201491,982.80,Not Applicable
Department for Business Energy and Industrial Strategy,Intellectual Property Office,08/02/2022,Accommodation,People Places & Serv Directorate,SIG TRADING LTD,7.0336E+11,"8,340.70",Not Applicable
Department for Business Energy and Industrial Strategy,Intellectual Property Office,14/02/2022,Accommodation,People Places & Serv Directorate,SIG TRADING LTD,7.0336E+11,"4,834.13",Not Applicable
Department for Business Energy and Industrial Strategy,Intellectual Property Office,14/02/2022,Accommodation,People Places & Serv Directorate,SIG TRADING LTD,7.0336E+11,"2,179.79",Not Applicable
Department for Business Energy and Industrial Strategy,Intellectual Property Office,23/02/2022,Supporting UK Business,Innovation Directorate,Scintilla,INV-03123,"2,500.00",Not Applicable
Department for Business Energy and Industrial Strategy,Intellectual Property Office,01/02/2022,Supporting UK Business,Innovation Directorate,Forresters clear direction,KBO/5848135,"2,500.00",Not Applicable
Department for Business Energy and Industrial Strategy,Intellectual Property Office,25/02/2022,Information Technology,Patent Directorate,American Chemical Society,1156910,"1,598.50",Not Applicable
Department for Business Energy and Industrial Strategy,Intellectual Property Office,02/02/2022,Other FA at Cost,IT Directorate,IBM UNITED KINGDOM LIMITED,5801223431,"8,344.90",Not Applicable
Department for Business Energy and Industrial Strategy,Intellectual Property Office,21/02/2022,Supporting UK Business,Innovation Directorate,Appleyard Lees,156005,"2,500.00",Not Applicable
Department for Business Energy and Industrial Strategy,Intellectual Property Office,15/02/2022,Supporting UK Business,Innovation Directorate,Ellis IP Limited,4699,"2,500.00",Not Applicable
Department for Business Energy and Industrial Strategy,Intellectual Property Office,02/02/2022,Staff Costs,People Places & Serv Directorate,Ernst & Young LLP,GB01G000270664,928.80,Not Applicable
Department for Business Energy and Industrial Strategy,Intellectual Property Office,15/02/2022,Staff Costs,Patent Directorate,Ernst & Young LLP,GB01G000273915,"1,471.20",Not Applicable
Department for Business Energy and Industrial Strategy,Intellectual Property Office,17/02/2022,Supporting UK Business,Innovation Directorate,Ipentus Limited,IP0012,"5,000.00",Not Applicable
Department for Business Energy and Industrial Strategy,Intellectual Property Office,21/02/2022,Supporting UK Business,Innovation Directorate,Ipentus Limited,IP0013,"2,500.00",Not Applicable
Department for Business Energy and Industrial Strategy,Intellectual Property Office,03/02/2022,Miscellaneous Expenses General,Innovation Directorate,KPMG LLP (CSL),5502352581,"5,691.60",Not Applicable
Department for Business Energy and Industrial Strategy,Intellectual Property Office,01/02/2022,Staff Costs,People Places & Serv Directorate,KPMG LLP (CSL),5502376476,"1,501.20",Not Applicable
Department for Business Energy and Industrial Strategy,Intellectual Property Office,07/02/2022,Staff Costs,People Places & Serv Directorate,KPMG LLP (CSL),5502381765,"2,506.80",Not Applicable
Department for Business Energy and Industrial Strategy,Intellectual Property Office,07/02/2022,Staff Costs,People Places & Serv Directorate,KPMG LLP (CSL),5502381767,"2,506.80",Not Applicable
Department for Business Energy and Industrial Strategy,Intellectual Property Office,17/02/2022,Staff Costs,People Places & Serv Directorate,KPMG LLP (CSL),5502388252,"2,337.60",Not Applicable
Department for Business Energy and Industrial Strategy,Intellectual Property Office,03/02/2022,Staff Costs,People Places & Serv Directorate,Korn Ferry UK limited,1195069643,"1,892.40",Not Applicable
Department for Business Energy and Industrial Strategy,Intellectual Property Office,14/02/2022,Staff Costs,People Places & Serv Directorate,Korn Ferry UK limited,1195070164,"10,794.49",Not Applicable
Department for Business Energy and Industrial Strategy,Intellectual Property Office,11/02/2022,Staff Costs,People Places & Serv Directorate,University of West of England,SN426852/1,"5,333.00",Not Applicable
Department for Business Energy and Industrial Strategy,Intellectual Property Office,21/02/2022,Supporting UK Business,Innovation Directorate,Irwin Mitchell LLP,3565038,"2,500.00",Not Applicable
Department for Business Energy and Industrial Strategy,Intellectual Property Office,03/02/2022,Supporting UK Business,Innovation Directorate,Bridle Intellectual Property Ltd,133-034,"5,000.00",Not Applicable
Department for Business Energy and Industrial Strategy,Intellectual Property Office,03/02/2022,Supporting UK Business,Innovation Directorate,Bridle Intellectual Property Ltd,133-035,"5,000.00",Not Applicable
Department for Business Energy and Industrial Strategy,Intellectual Property Office,15/02/2022,Supporting UK Business,Innovation Directorate,Bridle Intellectual Property Ltd,133-036,"2,500.00",Not Applicable
Department for Business Energy and Industrial Strategy,Intellectual Property Office,01/02/2022,Supporting UK Business,Innovation Directorate,Venture Proof Ltd,2286,"4,999.99",Not Applicable
Department for Business Energy and Industrial Strategy,Intellectual Property Office,03/02/2022,Information Technology,IT Directorate,Equal Experts UK Limited,INV-9918,"15,000.00",Not Applicable
Department for Business Energy and Industrial Strategy,Intellectual Property Office,11/02/2022,Legal & Hearings,Patent Directorate,"Department Business, Energy & Industrial",6.1511E+11,"166,250.00",Not Applicable
Department for Business Energy and Industrial Strategy,Intellectual Property Office,03/02/2022,Supporting UK Business,Innovation Directorate,Brabners,308410,"4,999.82",Not Applicable
Department for Business Energy and Industrial Strategy,Intellectual Property Office,09/02/2022,Supporting UK Business,Innovation Directorate,IP21 LTD,28013,"2,500.00",Not Applicable
Department for Business Energy and Industrial Strategy,Intellectual Property Office,25/02/2022,Supporting UK Business,Innovation Directorate,IP21 LTD,28026,"2,499.60",Not Applicable
Department for Business Energy and Industrial Strategy,Intellectual Property Office,10/02/2022,Accommodation,People Places & Serv Directorate,Shred It Limited,9505185357,"1,053.00",Not Applicable
Department for Business Energy and Industrial Strategy,Intellectual Property Office,23/02/2022,Accommodation,People Places & Serv Directorate,Shred It Limited,9505198177,"1,053.00",Not Applicable
Department for Business Energy and Industrial Strategy,Intellectual Property Office,03/02/2022,Supporting UK Business,Innovation Directorate,Mathys & Squire IP,441815,"5,000.00",Not Applicable
Department for Business Energy and Industrial Strategy,Intellectual Property Office,17/02/2022,Supporting UK Business,Innovation Directorate,CMS Cameron MsKenna LLP Office A/C,1000-0005171,"5,000.00",Not Applicable
Department for Business Energy and Industrial Strategy,Intellectual Property Office,23/02/2022,Supporting UK Business,Innovation Directorate,Keltie LLP,164967,"5,000.00",Not Applicable
Department for Business Energy and Industrial Strategy,Intellectual Property Office,14/02/2022,Office Supplies,People Places & Serv Directorate,Blake Envelopes,SI0000734969,511.20,Not Applicable
Department for Business Energy and Industrial Strategy,Intellectual Property Office,14/02/2022,Office Supplies,People Places & Serv Directorate,Blake Envelopes,SI0000735567,"1,322.40",Not Applicable
Department for Business Energy and Industrial Strategy,Intellectual Property Office,03/02/2022,Supporting UK Business,Innovation Directorate,Gill Jennings & Every LLP,422569,"2,500.00",Not Applicable
Department for Business Energy and Industrial Strategy,Intellectual Property Office,02/02/2022,Supporting UK Business,Innovation Directorate,HFG Limited,672733,"2,500.00",Not Applicable
Department for Business Energy and Industrial Strategy,Intellectual Property Office,18/02/2022,Supporting UK Business,Innovation Directorate,HFG Limited,675351,"2,500.00",Not Applicable
Department for Business Energy and Industrial Strategy,Intellectual Property Office,25/02/2022,Supporting UK Business,Innovation Directorate,CRAC Limited,INV-0639,"11,424.00",Not Applicable
Department for Business Energy and Industrial Strategy,Intellectual Property Office,25/02/2022,Supporting UK Business,Innovation Directorate,CRAC Limited,INV-0651,"13,482.00",Not Applicable
Department for Business Energy and Industrial Strategy,Intellectual Property Office,01/02/2022,Staff Costs,People Places & Serv Directorate,JL Training & Consultancy,2261,"2,160.00",Not Applicable
Department for Business Energy and Industrial Strategy,Intellectual Property Office,01/02/2022,Supporting UK Business,Innovation Directorate,EIP Europe LLP,107081,"2,500.00",Not Applicable
Department for Business Energy and Industrial Strategy,Intellectual Property Office,21/02/2022,Supporting UK Business,Innovation Directorate,EIP Europe LLP,107556,"2,500.00",Not Applicable
Department for Business Energy and Industrial Strategy,Intellectual Property Office,25/02/2022,Supporting UK Business,Innovation Directorate,EIP Europe LLP,107671,"2,500.00",Not Applicable
Department for Business Energy and Industrial Strategy,Intellectual Property Office,21/02/2022,Supporting UK Business,Innovation Directorate,Sweetinburgh & Windsor Ltd,6813,"4,999.92",Not Applicable
Department for Business Energy and Industrial Strategy,Intellectual Property Office,08/02/2022,Supporting UK Business,Innovation Directorate,Definition IP Ltd,INV-002386,840.00,Not Applicable
Department for Business Energy and Industrial Strategy,Intellectual Property Office,15/02/2022,Supporting UK Business,Innovation Directorate,Definition IP Ltd,INV-002418,"2,500.00",Not Applicable
Department for Business Energy and Industrial Strategy,Intellectual Property Office,28/02/2022,Supporting UK Business,Innovation Directorate,K2 IP Limited,2190,"2,500.00",Not Applicable
Department for Business Energy and Industrial Strategy,Intellectual Property Office,25/02/2022,Supporting UK Business,Innovation Directorate,Lewis Silkin LLP,572097,"2,500.00",Not Applicable
Department for Business Energy and Industrial Strategy,Intellectual Property Office,25/02/2022,Staff Costs,People Places & Serv Directorate,People Untapped Limited,INV-1658,"2,640.00",Not Applicable
Department for Business Energy and Industrial Strategy,Intellectual Property Office,24/02/2022,Information Technology,IT Directorate,Acuma Solutions Limited,SIN023048,"14,772.12",Not Applicable
Department for Business Energy and Industrial Strategy,Intellectual Property Office,03/02/2022,Supporting UK Business,Innovation Directorate,Barker Brettell LLP,447519,"2,500.01",Not Applicable
Department for Business Energy and Industrial Strategy,Intellectual Property Office,18/02/2022,Supporting UK Business,Innovation Directorate,Barker Brettell LLP,447982,"2,500.00",Not Applicable
Department for Business Energy and Industrial Strategy,Intellectual Property Office,11/02/2022,Accommodation,Trade Mark Directorate,The International Dispute Resoluti,29698,"2,030.70",Not Applicable
Department for Business Energy and Industrial Strategy,Intellectual Property Office,25/02/2022,Information Technology,IT Directorate,Kyocera Document Solutions UK Limited,1267632,"9,244.14",Not Applicable
Department for Business Energy and Industrial Strategy,Intellectual Property Office,23/02/2022,Other FA at Cost,Projects,Deloitte LLP,8002395570,"183,426.00",Not Applicable
Department for Business Energy and Industrial Strategy,Intellectual Property Office,25/02/2022,Other FA at Cost,Projects,Deloitte LLP,8002415152,"314,092.80",Not Applicable
Department for Business Energy and Industrial Strategy,Intellectual Property Office,18/02/2022,Other FA at Cost,IT Directorate,Total Computer Networks Ltd,SI845437,"4,385.89",Not Applicable
Department for Business Energy and Industrial Strategy,Intellectual Property Office,04/02/2022,Supporting UK Business,Innovation Directorate,BASCK Limited,22041,"5,000.00",Not Applicable
Department for Business Energy and Industrial Strategy,Intellectual Property Office,18/02/2022,Supporting UK Business,Innovation Directorate,Reddie & Grose LLP,306399,"2,499.60",Not Applicable
Department for Business Energy and Industrial Strategy,Intellectual Property Office,18/02/2022,Supporting UK Business,Innovation Directorate,Reddie & Grose LLP,306573,"2,500.00",Not Applicable
Department for Business Energy and Industrial Strategy,Intellectual Property Office,07/02/2022,Pay Costs,People Places & Serv Directorate,Alexander Mann Solutions Limited,2494811,660.66,Not Applicable
Department for Business Energy and Industrial Strategy,Intellectual Property Office,07/02/2022,Pay Costs,IT Directorate,Alexander Mann Solutions Limited,2494812,"10,030.72",Not Applicable
Department for Business Energy and Industrial Strategy,Intellectual Property Office,07/02/2022,Pay Costs,IT Directorate,Alexander Mann Solutions Limited,2494814,"7,194.31",Not Applicable
Department for Business Energy and Industrial Strategy,Intellectual Property Office,07/02/2022,Pay Costs,People Places & Serv Directorate,Alexander Mann Solutions Limited,2494815,526.24,Not Applicable
Department for Business Energy and Industrial Strategy,Intellectual Property Office,07/02/2022,Pay Costs,IT Directorate,Alexander Mann Solutions Limited,2494816,"7,882.60",Not Applicable
Department for Business Energy and Industrial Strategy,Intellectual Property Office,07/02/2022,Pay Costs,Patent Directorate,Alexander Mann Solutions Limited,2494817,645.30,Not Applicable
Department for Business Energy and Industrial Strategy,Intellectual Property Office,07/02/2022,Pay Costs,Patent Directorate,Alexander Mann Solutions Limited,2494818,636.70,Not Applicable
Department for Business Energy and Industrial Strategy,Intellectual Property Office,07/02/2022,Pay Costs,Patent Directorate,Alexander Mann Solutions Limited,2494819,631.70,Not Applicable
Department for Business Energy and Industrial Strategy,Intellectual Property Office,07/02/2022,Pay Costs,Patent Directorate,Alexander Mann Solutions Limited,2494820,636.70,Not Applicable
Department for Business Energy and Industrial Strategy,Intellectual Property Office,07/02/2022,Pay Costs,IT Directorate,Alexander Mann Solutions Limited,2494821,"7,297.09",Not Applicable
Department for Business Energy and Industrial Strategy,Intellectual Property Office,07/02/2022,Pay Costs,Patent Directorate,Alexander Mann Solutions Limited,2494823,645.30,Not Applicable
Department for Business Energy and Industrial Strategy,Intellectual Property Office,07/02/2022,Pay Costs,IT Directorate,Alexander Mann Solutions Limited,2494824,"3,599.58",Not Applicable
Department for Business Energy and Industrial Strategy,Intellectual Property Office,07/02/2022,Pay Costs,Patent Directorate,Alexander Mann Solutions Limited,2494825,645.30,Not Applicable
Department for Business Energy and Industrial Strategy,Intellectual Property Office,07/02/2022,Pay Costs,IT Directorate,Alexander Mann Solutions Limited,2494826,"6,930.60",Not Applicable
Department for Business Energy and Industrial Strategy,Intellectual Property Office,07/02/2022,Pay Costs,IT Directorate,Alexander Mann Solutions Limited,2494827,"2,440.62",Not Applicable
Department for Business Energy and Industrial Strategy,Intellectual Property Office,07/02/2022,Pay Costs,Patent Directorate,Alexander Mann Solutions Limited,2494828,602.28,Not Applicable
Department for Business Energy and Industrial Strategy,Intellectual Property Office,07/02/2022,Pay Costs,Patent Directorate,Alexander Mann Solutions Limited,2494829,610.06,Not Applicable
Department for Business Energy and Industrial Strategy,Intellectual Property Office,07/02/2022,Pay Costs,IT Directorate,Alexander Mann Solutions Limited,2494830,"2,255.58",Not Applicable
Department for Business Energy and Industrial Strategy,Intellectual Property Office,07/02/2022,Pay Costs,Patent Directorate,Alexander Mann Solutions Limited,2494831,889.27,Not Applicable
Department for Business Energy and Industrial Strategy,Intellectual Property Office,07/02/2022,Pay Costs,Patent Directorate,Alexander Mann Solutions Limited,2494832,698.41,Not Applicable
Department for Business Energy and Industrial Strategy,Intellectual Property Office,07/02/2022,Pay Costs,Patent Directorate,Alexander Mann Solutions Limited,2494833,698.41,Not Applicable
Department for Business Energy and Industrial Strategy,Intellectual Property Office,07/02/2022,Pay Costs,Innovation Directorate,Alexander Mann Solutions Limited,2494834,698.41,Not Applicable
Department for Business Energy and Industrial Strategy,Intellectual Property Office,07/02/2022,Pay Costs,Patent Directorate,Alexander Mann Solutions Limited,2494835,645.30,Not Applicable
Department for Business Energy and Industrial Strategy,Intellectual Property Office,07/02/2022,Pay Costs,Patent Directorate,Alexander Mann Solutions Limited,2494836,610.06,Not Applicable
Department for Business Energy and Industrial Strategy,Intellectual Property Office,07/02/2022,Pay Costs,Projects,Alexander Mann Solutions Limited,2494838,"4,410.42",Not Applicable
Department for Business Energy and Industrial Strategy,Intellectual Property Office,07/02/2022,Pay Costs,IT Directorate,Alexander Mann Solutions Limited,2494839,"7,181.76",Not Applicable
Department for Business Energy and Industrial Strategy,Intellectual Property Office,07/02/2022,Pay Costs,Projects,Alexander Mann Solutions Limited,2494840,"4,311.54",Not Applicable
Department for Business Energy and Industrial Strategy,Intellectual Property Office,07/02/2022,Pay Costs,Finance Directorate,Alexander Mann Solutions Limited,2494841,698.41,Not Applicable
Department for Business Energy and Industrial Strategy,Intellectual Property Office,07/02/2022,Pay Costs,Patent Directorate,Alexander Mann Solutions Limited,2494842,645.30,Not Applicable
Department for Business Energy and Industrial Strategy,Intellectual Property Office,07/02/2022,Pay Costs,Patent Directorate,Alexander Mann Solutions Limited,2494844,"1,396.82",Not Applicable
Department for Business Energy and Industrial Strategy,Intellectual Property Office,07/02/2022,Pay Costs,IT Directorate,Alexander Mann Solutions Limited,2494845,"3,024.30",Not Applicable
Department for Business Energy and Industrial Strategy,Intellectual Property Office,07/02/2022,Pay Costs,Finance Directorate,Alexander Mann Solutions Limited,2494846,698.41,Not Applicable
Department for Business Energy and Industrial Strategy,Intellectual Property Office,07/02/2022,Pay Costs,IT Directorate,Alexander Mann Solutions Limited,2494847,"4,095.36",Not Applicable
Department for Business Energy and Industrial Strategy,Intellectual Property Office,07/02/2022,Pay Costs,Patent Directorate,Alexander Mann Solutions Limited,2494848,"1,264.69",Not Applicable
Department for Business Energy and Industrial Strategy,Intellectual Property Office,07/02/2022,Pay Costs,IT Directorate,Alexander Mann Solutions Limited,2494849,"4,410.42",Not Applicable
Department for Business Energy and Industrial Strategy,Intellectual Property Office,07/02/2022,Pay Costs,Patent Directorate,Alexander Mann Solutions Limited,2494850,645.30,Not Applicable
Department for Business Energy and Industrial Strategy,Intellectual Property Office,07/02/2022,Pay Costs,Projects,Alexander Mann Solutions Limited,2494851,"3,465.30",Not Applicable
Department for Business Energy and Industrial Strategy,Intellectual Property Office,07/02/2022,Pay Costs,Projects,Alexander Mann Solutions Limited,2494852,"3,150.30",Not Applicable
Department for Business Energy and Industrial Strategy,Intellectual Property Office,07/02/2022,Pay Costs,Projects,Alexander Mann Solutions Limited,2494853,"4,090.44",Not Applicable
Department for Business Energy and Industrial Strategy,Intellectual Property Office,07/02/2022,Pay Costs,Projects,Alexander Mann Solutions Limited,2494854,"2,999.70",Not Applicable
Department for Business Energy and Industrial Strategy,Intellectual Property Office,07/02/2022,Pay Costs,Patent Directorate,Alexander Mann Solutions Limited,2494855,637.07,Not Applicable
Department for Business Energy and Industrial Strategy,Intellectual Property Office,07/02/2022,Pay Costs,Patent Directorate,Alexander Mann Solutions Limited,2494856,566.28,Not Applicable
Department for Business Energy and Industrial Strategy,Intellectual Property Office,07/02/2022,Pay Costs,Trade Mark Directorate,Alexander Mann Solutions Limited,2494857,609.59,Not Applicable
Department for Business Energy and Industrial Strategy,Intellectual Property Office,07/02/2022,Pay Costs,Trade Mark Directorate,Alexander Mann Solutions Limited,2494858,764.57,Not Applicable
Department for Business Energy and Industrial Strategy,Intellectual Property Office,07/02/2022,Pay Costs,Trade Mark Directorate,Alexander Mann Solutions Limited,2494859,764.57,Not Applicable
Department for Business Energy and Industrial Strategy,Intellectual Property Office,07/02/2022,Pay Costs,Trade Mark Directorate,Alexander Mann Solutions Limited,2494860,764.57,Not Applicable
Department for Business Energy and Industrial Strategy,Intellectual Property Office,07/02/2022,Pay Costs,Trade Mark Directorate,Alexander Mann Solutions Limited,2494861,764.57,Not Applicable
Department for Business Energy and Industrial Strategy,Intellectual Property Office,07/02/2022,Pay Costs,Trade Mark Directorate,Alexander Mann Solutions Limited,2494862,764.57,Not Applicable
Department for Business Energy and Industrial Strategy,Intellectual Property Office,28/02/2022,Pay Costs,IT Directorate,Alexander Mann Solutions Limited,2499444,"6,708.38",Not Applicable
Department for Business Energy and Industrial Strategy,Intellectual Property Office,14/02/2022,Pay Costs,IT Directorate,Alexander Mann Solutions Limited,2499445,"3,659.63",Not Applicable
Department for Business Energy and Industrial Strategy,Intellectual Property Office,14/02/2022,Pay Costs,IT Directorate,Alexander Mann Solutions Limited,2499446,"2,887.20",Not Applicable
Department for Business Energy and Industrial Strategy,Intellectual Property Office,14/02/2022,Pay Costs,Patent Directorate,Alexander Mann Solutions Limited,2499447,645.30,Not Applicable
Department for Business Energy and Industrial Strategy,Intellectual Property Office,14/02/2022,Pay Costs,Patent Directorate,Alexander Mann Solutions Limited,2499448,507.64,Not Applicable
Department for Business Energy and Industrial Strategy,Intellectual Property Office,14/02/2022,Pay Costs,Patent Directorate,Alexander Mann Solutions Limited,2499449,636.70,Not Applicable
Department for Business Energy and Industrial Strategy,Intellectual Property Office,14/02/2022,Pay Costs,Patent Directorate,Alexander Mann Solutions Limited,2499450,636.70,Not Applicable
Department for Business Energy and Industrial Strategy,Intellectual Property Office,14/02/2022,Pay Costs,IT Directorate,Alexander Mann Solutions Limited,2499451,"3,660.76",Not Applicable
Department for Business Energy and Industrial Strategy,Intellectual Property Office,14/02/2022,Pay Costs,Patent Directorate,Alexander Mann Solutions Limited,2499452,645.30,Not Applicable
Department for Business Energy and Industrial Strategy,Intellectual Property Office,14/02/2022,Pay Costs,IT Directorate,Alexander Mann Solutions Limited,2499453,"6,942.80",Not Applicable
Department for Business Energy and Industrial Strategy,Intellectual Property Office,14/02/2022,Pay Costs,Patent Directorate,Alexander Mann Solutions Limited,2499454,645.30,Not Applicable
Department for Business Energy and Industrial Strategy,Intellectual Property Office,14/02/2022,Pay Costs,IT Directorate,Alexander Mann Solutions Limited,2499455,"3,239.63",Not Applicable
Department for Business Energy and Industrial Strategy,Intellectual Property Office,14/02/2022,Pay Costs,Patent Directorate,Alexander Mann Solutions Limited,2499456,645.30,Not Applicable
Department for Business Energy and Industrial Strategy,Intellectual Property Office,14/02/2022,Pay Costs,IT Directorate,Alexander Mann Solutions Limited,2499457,"7,840.08",Not Applicable
Department for Business Energy and Industrial Strategy,Intellectual Property Office,14/02/2022,Pay Costs,IT Directorate,Alexander Mann Solutions Limited,2499458,"3,465.30",Not Applicable
Department for Business Energy and Industrial Strategy,Intellectual Property Office,15/02/2022,Pay Costs,IT Directorate,Alexander Mann Solutions Limited,2499459,"12,271.32",Not Applicable
Department for Business Energy and Industrial Strategy,Intellectual Property Office,14/02/2022,Pay Costs,Patent Directorate,Alexander Mann Solutions Limited,2499460,636.70,Not Applicable
Department for Business Energy and Industrial Strategy,Intellectual Property Office,28/02/2022,Pay Costs,IT Directorate,Alexander Mann Solutions Limited,2499461,"2,440.62",Not Applicable
Department for Business Energy and Industrial Strategy,Intellectual Property Office,14/02/2022,Pay Costs,Patent Directorate,Alexander Mann Solutions Limited,2499462,602.28,Not Applicable
Department for Business Energy and Industrial Strategy,Intellectual Property Office,15/02/2022,Pay Costs,People Places & Serv Directorate,Alexander Mann Solutions Limited,2499463,"12,601.14",Not Applicable
Department for Business Energy and Industrial Strategy,Intellectual Property Office,14/02/2022,Pay Costs,IT Directorate,Alexander Mann Solutions Limited,2499465,"2,255.58",Not Applicable
Department for Business Energy and Industrial Strategy,Intellectual Property Office,14/02/2022,Pay Costs,Patent Directorate,Alexander Mann Solutions Limited,2499466,712.57,Not Applicable
Department for Business Energy and Industrial Strategy,Intellectual Property Office,14/02/2022,Pay Costs,Patent Directorate,Alexander Mann Solutions Limited,2499467,698.41,Not Applicable
Department for Business Energy and Industrial Strategy,Intellectual Property Office,14/02/2022,Pay Costs,Patent Directorate,Alexander Mann Solutions Limited,2499468,698.41,Not Applicable
Department for Business Energy and Industrial Strategy,Intellectual Property Office,14/02/2022,Pay Costs,Patent Directorate,Alexander Mann Solutions Limited,2499470,645.30,Not Applicable
Department for Business Energy and Industrial Strategy,Intellectual Property Office,14/02/2022,Pay Costs,Patent Directorate,Alexander Mann Solutions Limited,2499471,614.18,Not Applicable
Department for Business Energy and Industrial Strategy,Intellectual Property Office,14/02/2022,Pay Costs,IT Directorate,Alexander Mann Solutions Limited,2499473,"3,590.88",Not Applicable
Department for Business Energy and Industrial Strategy,Intellectual Property Office,15/02/2022,Pay Costs,IT Directorate,Alexander Mann Solutions Limited,2499474,"5,544.48",Not Applicable
Department for Business Energy and Industrial Strategy,Intellectual Property Office,14/02/2022,Pay Costs,Projects,Alexander Mann Solutions Limited,2499475,"4,311.54",Not Applicable
Department for Business Energy and Industrial Strategy,Intellectual Property Office,14/02/2022,Pay Costs,Finance Directorate,Alexander Mann Solutions Limited,2499476,698.41,Not Applicable
Department for Business Energy and Industrial Strategy,Intellectual Property Office,14/02/2022,Pay Costs,IT Directorate,Alexander Mann Solutions Limited,2499478,"3,024.30",Not Applicable
Department for Business Energy and Industrial Strategy,Intellectual Property Office,14/02/2022,Pay Costs,Finance Directorate,Alexander Mann Solutions Limited,2499479,698.41,Not Applicable
Department for Business Energy and Industrial Strategy,Intellectual Property Office,15/02/2022,Pay Costs,IT Directorate,Alexander Mann Solutions Limited,2499480,"2,802.98",Not Applicable
Department for Business Energy and Industrial Strategy,Intellectual Property Office,14/02/2022,Pay Costs,IT Directorate,Alexander Mann Solutions Limited,2499481,"4,095.36",Not Applicable
Department for Business Energy and Industrial Strategy,Intellectual Property Office,14/02/2022,Pay Costs,Patent Directorate,Alexander Mann Solutions Limited,2499482,698.41,Not Applicable
Department for Business Energy and Industrial Strategy,Intellectual Property Office,14/02/2022,Pay Costs,IT Directorate,Alexander Mann Solutions Limited,2499483,"5,860.80",Not Applicable
Department for Business Energy and Industrial Strategy,Intellectual Property Office,14/02/2022,Pay Costs,IT Directorate,Alexander Mann Solutions Limited,2499484,"4,561.60",Not Applicable
Department for Business Energy and Industrial Strategy,Intellectual Property Office,14/02/2022,Pay Costs,IT Directorate,Alexander Mann Solutions Limited,2499485,"7,391.16",Not Applicable
Department for Business Energy and Industrial Strategy,Intellectual Property Office,14/02/2022,Pay Costs,IT Directorate,Alexander Mann Solutions Limited,2499486,"5,999.40",Not Applicable
Department for Business Energy and Industrial Strategy,Intellectual Property Office,14/02/2022,Pay Costs,Patent Directorate,Alexander Mann Solutions Limited,2499487,645.30,Not Applicable
Department for Business Energy and Industrial Strategy,Intellectual Property Office,14/02/2022,Pay Costs,Projects,Alexander Mann Solutions Limited,2499488,"3,465.30",Not Applicable
Department for Business Energy and Industrial Strategy,Intellectual Property Office,14/02/2022,Pay Costs,Projects,Alexander Mann Solutions Limited,2499489,"3,150.30",Not Applicable
Department for Business Energy and Industrial Strategy,Intellectual Property Office,14/02/2022,Pay Costs,IT Directorate,Alexander Mann Solutions Limited,2499490,"8,190.72",Not Applicable
Department for Business Energy and Industrial Strategy,Intellectual Property Office,14/02/2022,Pay Costs,Projects,Alexander Mann Solutions Limited,2499491,"4,090.44",Not Applicable
Department for Business Energy and Industrial Strategy,Intellectual Property Office,14/02/2022,Pay Costs,Projects,Alexander Mann Solutions Limited,2499492,"2,999.70",Not Applicable
Department for Business Energy and Industrial Strategy,Intellectual Property Office,15/02/2022,Pay Costs,Patent Directorate,Alexander Mann Solutions Limited,2499493,641.78,Not Applicable
Department for Business Energy and Industrial Strategy,Intellectual Property Office,14/02/2022,Pay Costs,Patent Directorate,Alexander Mann Solutions Limited,2499494,566.28,Not Applicable
Department for Business Energy and Industrial Strategy,Intellectual Property Office,15/02/2022,Pay Costs,Trade Mark Directorate,Alexander Mann Solutions Limited,2499495,"1,099.72",Not Applicable
Department for Business Energy and Industrial Strategy,Intellectual Property Office,14/02/2022,Pay Costs,Trade Mark Directorate,Alexander Mann Solutions Limited,2499496,965.21,Not Applicable
Department for Business Energy and Industrial Strategy,Intellectual Property Office,14/02/2022,Pay Costs,Trade Mark Directorate,Alexander Mann Solutions Limited,2499497,764.57,Not Applicable
Department for Business Energy and Industrial Strategy,Intellectual Property Office,14/02/2022,Pay Costs,Trade Mark Directorate,Alexander Mann Solutions Limited,2499498,547.60,Not Applicable
Department for Business Energy and Industrial Strategy,Intellectual Property Office,14/02/2022,Pay Costs,Trade Mark Directorate,Alexander Mann Solutions Limited,2499499,764.57,Not Applicable
Department for Business Energy and Industrial Strategy,Intellectual Property Office,14/02/2022,Pay Costs,Patent Directorate,Alexander Mann Solutions Limited,2499501,698.41,Not Applicable
Department for Business Energy and Industrial Strategy,Intellectual Property Office,23/02/2022,Pay Costs,IT Directorate,Alexander Mann Solutions Limited,2504235,"6,839.57",Not Applicable
Department for Business Energy and Industrial Strategy,Intellectual Property Office,23/02/2022,Pay Costs,Projects,Alexander Mann Solutions Limited,2504236,"2,263.25",Not Applicable
Department for Business Energy and Industrial Strategy,Intellectual Property Office,22/02/2022,Pay Costs,Trade Mark Directorate,Alexander Mann Solutions Limited,2504237,909.22,Not Applicable
Department for Business Energy and Industrial Strategy,Intellectual Property Office,22/02/2022,Pay Costs,IT Directorate,Alexander Mann Solutions Limited,2504238,"3,548.27",Not Applicable
Department for Business Energy and Industrial Strategy,Intellectual Property Office,23/02/2022,Pay Costs,IT Directorate,Alexander Mann Solutions Limited,2504239,"6,159.36",Not Applicable
Department for Business Energy and Industrial Strategy,Intellectual Property Office,22/02/2022,Pay Costs,Patent Directorate,Alexander Mann Solutions Limited,2504240,645.30,Not Applicable
Department for Business Energy and Industrial Strategy,Intellectual Property Office,22/02/2022,Pay Costs,Patent Directorate,Alexander Mann Solutions Limited,2504241,533.45,Not Applicable
Department for Business Energy and Industrial Strategy,Intellectual Property Office,22/02/2022,Pay Costs,Patent Directorate,Alexander Mann Solutions Limited,2504242,636.70,Not Applicable
Department for Business Energy and Industrial Strategy,Intellectual Property Office,22/02/2022,Pay Costs,Patent Directorate,Alexander Mann Solutions Limited,2504243,516.24,Not Applicable
Department for Business Energy and Industrial Strategy,Intellectual Property Office,22/02/2022,Pay Costs,IT Directorate,Alexander Mann Solutions Limited,2504244,"3,758.38",Not Applicable
Department for Business Energy and Industrial Strategy,Intellectual Property Office,22/02/2022,Pay Costs,Patent Directorate,Alexander Mann Solutions Limited,2504245,645.30,Not Applicable
Department for Business Energy and Industrial Strategy,Intellectual Property Office,22/02/2022,Pay Costs,Patent Directorate,Alexander Mann Solutions Limited,2504246,645.30,Not Applicable
Department for Business Energy and Industrial Strategy,Intellectual Property Office,22/02/2022,Pay Costs,IT Directorate,Alexander Mann Solutions Limited,2504247,"3,599.58",Not Applicable
Department for Business Energy and Industrial Strategy,Intellectual Property Office,22/02/2022,Pay Costs,Patent Directorate,Alexander Mann Solutions Limited,2504248,645.30,Not Applicable
Department for Business Energy and Industrial Strategy,Intellectual Property Office,22/02/2022,Pay Costs,IT Directorate,Alexander Mann Solutions Limited,2504249,"3,920.04",Not Applicable
Department for Business Energy and Industrial Strategy,Intellectual Property Office,22/02/2022,Pay Costs,IT Directorate,Alexander Mann Solutions Limited,2504250,"3,465.30",Not Applicable
Department for Business Energy and Industrial Strategy,Intellectual Property Office,22/02/2022,Pay Costs,IT Directorate,Alexander Mann Solutions Limited,2504251,"4,090.44",Not Applicable
Department for Business Energy and Industrial Strategy,Intellectual Property Office,23/02/2022,Pay Costs,Projects,Alexander Mann Solutions Limited,2504252,"7,560.72",Not Applicable
Department for Business Energy and Industrial Strategy,Intellectual Property Office,22/02/2022,Pay Costs,Patent Directorate,Alexander Mann Solutions Limited,2504253,636.70,Not Applicable
Department for Business Energy and Industrial Strategy,Intellectual Property Office,22/02/2022,Pay Costs,IT Directorate,Alexander Mann Solutions Limited,2504254,"2,440.62",Not Applicable
Department for Business Energy and Industrial Strategy,Intellectual Property Office,22/02/2022,Pay Costs,Patent Directorate,Alexander Mann Solutions Limited,2504255,602.28,Not Applicable
Department for Business Energy and Industrial Strategy,Intellectual Property Office,22/02/2022,Pay Costs,Patent Directorate,Alexander Mann Solutions Limited,2504256,552.35,Not Applicable
Department for Business Energy and Industrial Strategy,Intellectual Property Office,22/02/2022,Pay Costs,IT Directorate,Alexander Mann Solutions Limited,2504257,"2,255.58",Not Applicable
Department for Business Energy and Industrial Strategy,Intellectual Property Office,22/02/2022,Pay Costs,Patent Directorate,Alexander Mann Solutions Limited,2504258,684.25,Not Applicable
Department for Business Energy and Industrial Strategy,Intellectual Property Office,22/02/2022,Pay Costs,Patent Directorate,Alexander Mann Solutions Limited,2504259,698.41,Not Applicable
Department for Business Energy and Industrial Strategy,Intellectual Property Office,25/02/2022,Pay Costs,Patent Directorate,Alexander Mann Solutions Limited,2504260,"1,396.82",Not Applicable
Department for Business Energy and Industrial Strategy,Intellectual Property Office,23/02/2022,Pay Costs,Innovation Directorate,Alexander Mann Solutions Limited,2504261,556.85,Not Applicable
Department for Business Energy and Industrial Strategy,Intellectual Property Office,22/02/2022,Pay Costs,Patent Directorate,Alexander Mann Solutions Limited,2504262,645.30,Not Applicable
Department for Business Energy and Industrial Strategy,Intellectual Property Office,22/02/2022,Pay Costs,Patent Directorate,Alexander Mann Solutions Limited,2504263,610.06,Not Applicable
Department for Business Energy and Industrial Strategy,Intellectual Property Office,22/02/2022,Pay Costs,Projects,Alexander Mann Solutions Limited,2504265,"8,820.84",Not Applicable
Department for Business Energy and Industrial Strategy,Intellectual Property Office,23/02/2022,Pay Costs,IT Directorate,Alexander Mann Solutions Limited,2504266,"5,544.48",Not Applicable
Department for Business Energy and Industrial Strategy,Intellectual Property Office,22/02/2022,Pay Costs,Projects,Alexander Mann Solutions Limited,2504267,"4,311.54",Not Applicable
Department for Business Energy and Industrial Strategy,Intellectual Property Office,22/02/2022,Pay Costs,Finance Directorate,Alexander Mann Solutions Limited,2504268,641.78,Not Applicable
Department for Business Energy and Industrial Strategy,Intellectual Property Office,22/02/2022,Pay Costs,Patent Directorate,Alexander Mann Solutions Limited,2504269,645.30,Not Applicable
Department for Business Energy and Industrial Strategy,Intellectual Property Office,22/02/2022,Pay Costs,IT Directorate,Alexander Mann Solutions Limited,2504270,"3,024.30",Not Applicable
Department for Business Energy and Industrial Strategy,Intellectual Property Office,22/02/2022,Pay Costs,Finance Directorate,Alexander Mann Solutions Limited,2504271,698.41,Not Applicable
Department for Business Energy and Industrial Strategy,Intellectual Property Office,23/02/2022,Pay Costs,IT Directorate,Alexander Mann Solutions Limited,2504272,"5,621.82",Not Applicable
Department for Business Energy and Industrial Strategy,Intellectual Property Office,22/02/2022,Pay Costs,IT Directorate,Alexander Mann Solutions Limited,2504273,"4,095.36",Not Applicable
Department for Business Energy and Industrial Strategy,Intellectual Property Office,22/02/2022,Pay Costs,Patent Directorate,Alexander Mann Solutions Limited,2504274,698.41,Not Applicable
Department for Business Energy and Industrial Strategy,Intellectual Property Office,22/02/2022,Pay Costs,IT Directorate,Alexander Mann Solutions Limited,2504275,"2,930.40",Not Applicable
Department for Business Energy and Industrial Strategy,Intellectual Property Office,22/02/2022,Pay Costs,IT Directorate,Alexander Mann Solutions Limited,2504276,"4,410.42",Not Applicable
Department for Business Energy and Industrial Strategy,Intellectual Property Office,22/02/2022,Pay Costs,IT Directorate,Alexander Mann Solutions Limited,2504277,"2,355.35",Not Applicable
Department for Business Energy and Industrial Strategy,Intellectual Property Office,22/02/2022,Pay Costs,IT Directorate,Alexander Mann Solutions Limited,2504278,"3,695.58",Not Applicable
Department for Business Energy and Industrial Strategy,Intellectual Property Office,22/02/2022,Pay Costs,IT Directorate,Alexander Mann Solutions Limited,2504279,"2,999.70",Not Applicable
Department for Business Energy and Industrial Strategy,Intellectual Property Office,22/02/2022,Pay Costs,Patent Directorate,Alexander Mann Solutions Limited,2504280,516.24,Not Applicable
Department for Business Energy and Industrial Strategy,Intellectual Property Office,22/02/2022,Pay Costs,Projects,Alexander Mann Solutions Limited,2504281,"3,465.30",Not Applicable
Department for Business Energy and Industrial Strategy,Intellectual Property Office,22/02/2022,Pay Costs,Projects,Alexander Mann Solutions Limited,2504282,"3,150.30",Not Applicable
Department for Business Energy and Industrial Strategy,Intellectual Property Office,22/02/2022,Pay Costs,IT Directorate,Alexander Mann Solutions Limited,2504283,"4,095.36",Not Applicable
Department for Business Energy and Industrial Strategy,Intellectual Property Office,22/02/2022,Pay Costs,Projects,Alexander Mann Solutions Limited,2504284,"4,090.44",Not Applicable
Department for Business Energy and Industrial Strategy,Intellectual Property Office,22/02/2022,Pay Costs,Projects,Alexander Mann Solutions Limited,2504285,"2,999.70",Not Applicable
Department for Business Energy and Industrial Strategy,Intellectual Property Office,23/02/2022,Pay Costs,Projects,Alexander Mann Solutions Limited,2504286,"16,381.44",Not Applicable
Department for Business Energy and Industrial Strategy,Intellectual Property Office,23/02/2022,Pay Costs,Projects,Alexander Mann Solutions Limited,2504287,"12,271.32",Not Applicable
Department for Business Energy and Industrial Strategy,Intellectual Property Office,22/02/2022,Pay Costs,Patent Directorate,Alexander Mann Solutions Limited,2504288,566.28,Not Applicable
Department for Business Energy and Industrial Strategy,Intellectual Property Office,22/02/2022,Pay Costs,Trade Mark Directorate,Alexander Mann Solutions Limited,2504289,619.92,Not Applicable
Department for Business Energy and Industrial Strategy,Intellectual Property Office,22/02/2022,Pay Costs,Trade Mark Directorate,Alexander Mann Solutions Limited,2504290,"1,529.14",Not Applicable
Department for Business Energy and Industrial Strategy,Intellectual Property Office,22/02/2022,Pay Costs,Trade Mark Directorate,Alexander Mann Solutions Limited,2504291,764.57,Not Applicable
Department for Business Energy and Industrial Strategy,Intellectual Property Office,22/02/2022,Pay Costs,Trade Mark Directorate,Alexander Mann Solutions Limited,2504292,661.25,Not Applicable
Department for Business Energy and Industrial Strategy,Intellectual Property Office,22/02/2022,Pay Costs,Trade Mark Directorate,Alexander Mann Solutions Limited,2504293,"1,529.14",Not Applicable
Department for Business Energy and Industrial Strategy,Intellectual Property Office,22/02/2022,Pay Costs,Finance Directorate,Alexander Mann Solutions Limited,2504295,"2,985.66",Not Applicable
Department for Business Energy and Industrial Strategy,Intellectual Property Office,22/02/2022,Pay Costs,Finance Directorate,Alexander Mann Solutions Limited,2504296,"2,985.66",Not Applicable
Department for Business Energy and Industrial Strategy,Intellectual Property Office,22/02/2022,Pay Costs,Patent Directorate,Alexander Mann Solutions Limited,2504297,698.41,Not Applicable
Department for Business Energy and Industrial Strategy,Intellectual Property Office,28/02/2022,Pay Costs,People Places & Serv Directorate,Alexander Mann Solutions Limited,2508854,585.16,Not Applicable
Department for Business Energy and Industrial Strategy,Intellectual Property Office,28/02/2022,Pay Costs,IT Directorate,Alexander Mann Solutions Limited,2508855,"3,429.65",Not Applicable
Department for Business Energy and Industrial Strategy,Intellectual Property Office,28/02/2022,Pay Costs,IT Directorate,Alexander Mann Solutions Limited,2508856,"3,565.46",Not Applicable
Department for Business Energy and Industrial Strategy,Intellectual Property Office,28/02/2022,Pay Costs,IT Directorate,Alexander Mann Solutions Limited,2508857,"8,608.27",Not Applicable
Department for Business Energy and Industrial Strategy,Intellectual Property Office,28/02/2022,Pay Costs,IT Directorate,Alexander Mann Solutions Limited,2508858,"3,079.68",Not Applicable
Department for Business Energy and Industrial Strategy,Intellectual Property Office,28/02/2022,Pay Costs,Patent Directorate,Alexander Mann Solutions Limited,2508859,645.30,Not Applicable
Department for Business Energy and Industrial Strategy,Intellectual Property Office,28/02/2022,Pay Costs,Patent Directorate,Alexander Mann Solutions Limited,2508860,516.24,Not Applicable
Department for Business Energy and Industrial Strategy,Intellectual Property Office,28/02/2022,Pay Costs,Patent Directorate,Alexander Mann Solutions Limited,2508862,636.70,Not Applicable
Department for Business Energy and Industrial Strategy,Intellectual Property Office,28/02/2022,Pay Costs,IT Directorate,Alexander Mann Solutions Limited,2508863,"3,709.56",Not Applicable
Department for Business Energy and Industrial Strategy,Intellectual Property Office,28/02/2022,Pay Costs,Patent Directorate,Alexander Mann Solutions Limited,2508864,645.30,Not Applicable
Department for Business Energy and Industrial Strategy,Intellectual Property Office,28/02/2022,Pay Costs,IT Directorate,Alexander Mann Solutions Limited,2508865,"6,896.21",Not Applicable
Department for Business Energy and Industrial Strategy,Intellectual Property Office,28/02/2022,Pay Costs,Patent Directorate,Alexander Mann Solutions Limited,2508866,645.30,Not Applicable
Department for Business Energy and Industrial Strategy,Intellectual Property Office,28/02/2022,Pay Costs,IT Directorate,Alexander Mann Solutions Limited,2508867,"3,599.58",Not Applicable
Department for Business Energy and Industrial Strategy,Intellectual Property Office,28/02/2022,Pay Costs,IT Directorate,Alexander Mann Solutions Limited,2508869,"3,920.04",Not Applicable
Department for Business Energy and Industrial Strategy,Intellectual Property Office,28/02/2022,Pay Costs,IT Directorate,Alexander Mann Solutions Limited,2508870,"4,090.44",Not Applicable
Department for Business Energy and Industrial Strategy,Intellectual Property Office,28/02/2022,Pay Costs,Patent Directorate,Alexander Mann Solutions Limited,2508871,645.30,Not Applicable
Department for Business Energy and Industrial Strategy,Intellectual Property Office,28/02/2022,Pay Costs,IT Directorate,Alexander Mann Solutions Limited,2508872,"2,440.62",Not Applicable
Department for Business Energy and Industrial Strategy,Intellectual Property Office,28/02/2022,Pay Costs,Patent Directorate,Alexander Mann Solutions Limited,2508873,602.28,Not Applicable
Department for Business Energy and Industrial Strategy,Intellectual Property Office,28/02/2022,Pay Costs,IT Directorate,Alexander Mann Solutions Limited,2508874,"2,255.58",Not Applicable
Department for Business Energy and Industrial Strategy,Intellectual Property Office,28/02/2022,Pay Costs,Patent Directorate,Alexander Mann Solutions Limited,2508875,"1,132.56",Not Applicable
Department for Business Energy and Industrial Strategy,Intellectual Property Office,28/02/2022,Pay Costs,Patent Directorate,Alexander Mann Solutions Limited,2508876,556.85,Not Applicable
Department for Business Energy and Industrial Strategy,Intellectual Property Office,28/02/2022,Pay Costs,Patent Directorate,Alexander Mann Solutions Limited,2508877,645.30,Not Applicable
Department for Business Energy and Industrial Strategy,Intellectual Property Office,28/02/2022,Pay Costs,Patent Directorate,Alexander Mann Solutions Limited,2508878,610.06,Not Applicable
Department for Business Energy and Industrial Strategy,Intellectual Property Office,28/02/2022,Pay Costs,Projects,Alexander Mann Solutions Limited,2508880,"3,528.34",Not Applicable
Department for Business Energy and Industrial Strategy,Intellectual Property Office,28/02/2022,Pay Costs,IT Directorate,Alexander Mann Solutions Limited,2508881,"3,590.88",Not Applicable
Department for Business Energy and Industrial Strategy,Intellectual Property Office,28/02/2022,Pay Costs,Projects,Alexander Mann Solutions Limited,2508882,"4,311.54",Not Applicable
Department for Business Energy and Industrial Strategy,Intellectual Property Office,28/02/2022,Pay Costs,Finance Directorate,Alexander Mann Solutions Limited,2508883,604.03,Not Applicable
Department for Business Energy and Industrial Strategy,Intellectual Property Office,28/02/2022,Pay Costs,IT Directorate,Alexander Mann Solutions Limited,2508885,"3,024.30",Not Applicable
Department for Business Energy and Industrial Strategy,Intellectual Property Office,28/02/2022,Pay Costs,Finance Directorate,Alexander Mann Solutions Limited,2508886,698.41,Not Applicable
Department for Business Energy and Industrial Strategy,Intellectual Property Office,28/02/2022,Pay Costs,IT Directorate,Alexander Mann Solutions Limited,2508887,"3,276.29",Not Applicable
Department for Business Energy and Industrial Strategy,Intellectual Property Office,28/02/2022,Pay Costs,IT Directorate,Alexander Mann Solutions Limited,2508888,"2,930.40",Not Applicable
Department for Business Energy and Industrial Strategy,Intellectual Property Office,28/02/2022,Pay Costs,IT Directorate,Alexander Mann Solutions Limited,2508889,"4,410.42",Not Applicable
Department for Business Energy and Industrial Strategy,Intellectual Property Office,28/02/2022,Pay Costs,IT Directorate,Alexander Mann Solutions Limited,2508890,"2,395.79",Not Applicable
Department for Business Energy and Industrial Strategy,Intellectual Property Office,28/02/2022,Pay Costs,IT Directorate,Alexander Mann Solutions Limited,2508891,"3,695.58",Not Applicable
Department for Business Energy and Industrial Strategy,Intellectual Property Office,28/02/2022,Pay Costs,IT Directorate,Alexander Mann Solutions Limited,2508892,"2,999.70",Not Applicable
Department for Business Energy and Industrial Strategy,Intellectual Property Office,28/02/2022,Pay Costs,Patent Directorate,Alexander Mann Solutions Limited,2508893,516.24,Not Applicable
Department for Business Energy and Industrial Strategy,Intellectual Property Office,28/02/2022,Pay Costs,Projects,Alexander Mann Solutions Limited,2508894,"3,465.30",Not Applicable
Department for Business Energy and Industrial Strategy,Intellectual Property Office,28/02/2022,Pay Costs,Projects,Alexander Mann Solutions Limited,2508895,"3,150.30",Not Applicable
Department for Business Energy and Industrial Strategy,Intellectual Property Office,28/02/2022,Pay Costs,IT Directorate,Alexander Mann Solutions Limited,2508896,"4,095.36",Not Applicable
Department for Business Energy and Industrial Strategy,Intellectual Property Office,28/02/2022,Pay Costs,Projects,Alexander Mann Solutions Limited,2508897,"4,090.44",Not Applicable
Department for Business Energy and Industrial Strategy,Intellectual Property Office,28/02/2022,Pay Costs,Projects,Alexander Mann Solutions Limited,2508898,"2,999.70",Not Applicable
Department for Business Energy and Industrial Strategy,Intellectual Property Office,28/02/2022,Pay Costs,Projects,Alexander Mann Solutions Limited,2508899,"4,095.36",Not Applicable
Department for Business Energy and Industrial Strategy,Intellectual Property Office,28/02/2022,Pay Costs,Projects,Alexander Mann Solutions Limited,2508900,"4,090.44",Not Applicable
Department for Business Energy and Industrial Strategy,Intellectual Property Office,28/02/2022,Pay Costs,Patent Directorate,Alexander Mann Solutions Limited,2508901,566.28,Not Applicable
Department for Business Energy and Industrial Strategy,Intellectual Property Office,28/02/2022,Pay Costs,Innovation Directorate,Alexander Mann Solutions Limited,2508902,698.41,Not Applicable
Department for Business Energy and Industrial Strategy,Intellectual Property Office,28/02/2022,Pay Costs,Trade Mark Directorate,Alexander Mann Solutions Limited,2508903,764.57,Not Applicable
Department for Business Energy and Industrial Strategy,Intellectual Property Office,28/02/2022,Pay Costs,Trade Mark Directorate,Alexander Mann Solutions Limited,2508904,599.26,Not Applicable
Department for Business Energy and Industrial Strategy,Intellectual Property Office,28/02/2022,Pay Costs,Trade Mark Directorate,Alexander Mann Solutions Limited,2508905,764.57,Not Applicable
Department for Business Energy and Industrial Strategy,Intellectual Property Office,28/02/2022,Pay Costs,Finance Directorate,Alexander Mann Solutions Limited,2508907,"2,985.66",Not Applicable
Department for Business Energy and Industrial Strategy,Intellectual Property Office,28/02/2022,Pay Costs,Finance Directorate,Alexander Mann Solutions Limited,2508908,"2,985.66",Not Applicable
Department for Business Energy and Industrial Strategy,Intellectual Property Office,28/02/2022,Pay Costs,Trade Mark Directorate,Alexander Mann Solutions Limited,2508909,764.57,Not Applicable
Department for Business Energy and Industrial Strategy,Intellectual Property Office,28/02/2022,Pay Costs,IT Directorate,Alexander Mann Solutions Limited,2508910,"3,465.30",Not Applicable
Department for Business Energy and Industrial Strategy,Intellectual Property Office,28/02/2022,Pay Costs,Trade Mark Directorate,Alexander Mann Solutions Limited,2508911,526.93,Not Applicable
Department for Business Energy and Industrial Strategy,Intellectual Property Office,21/02/2022,Supporting UK Business,Innovation Directorate,JA Kemp,909782,"2,500.00",Not Applicable
Department for Business Energy and Industrial Strategy,Intellectual Property Office,09/02/2022,Supporting UK Business,Innovation Directorate,JA Kemp,910076,"2,500.00",Not Applicable
Department for Business Energy and Industrial Strategy,Intellectual Property Office,25/02/2022,Supporting UK Business,Innovation Directorate,BONACCORD ECOSSE LTD,I000579,"2,400.00",Not Applicable
Department for Business Energy and Industrial Strategy,Intellectual Property Office,01/02/2022,Miscellaneous Expenses General,People Places & Serv Directorate,Cyberis Limited,INV02153,"5,700.00",Not Applicable
Department for Business Energy and Industrial Strategy,Intellectual Property Office,15/02/2022,Miscellaneous Expenses General,People Places & Serv Directorate,Cyberis Limited,INV02176,"5,700.00",Not Applicable
Department for Business Energy and Industrial Strategy,Intellectual Property Office,24/02/2022,Miscellaneous Expenses General,People Places & Serv Directorate,Cyberis Limited,INV02190,570.00,Not Applicable
Department for Business Energy and Industrial Strategy,Intellectual Property Office,24/02/2022,Information Technology,People Places & Serv Directorate,DYNATRACE LIMITED,GBR-2005239,"44,281.26",Not Applicable
Department for Business Energy and Industrial Strategy,Intellectual Property Office,21/02/2022,Pay Costs,Projects,Empyrean Digital Ltd,EMP-510,"71,062.78",Not Applicable
Department for Business Energy and Industrial Strategy,Intellectual Property Office,01/02/2022,Accommodation,People Places & Serv Directorate,Government Property Agency,00000001/14926,739.85,Not Applicable
Department for Business Energy and Industrial Strategy,Intellectual Property Office,01/02/2022,Accommodation,People Places & Serv Directorate,Government Property Agency,00000001/14927,"2,253.63",Not Applicable
Department for Business Energy and Industrial Strategy,Intellectual Property Office,01/02/2022,Accommodation,People Places & Serv Directorate,Government Property Agency,00000001/14927,"17,146.30",Not Applicable
Department for Business Energy and Industrial Strategy,Intellectual Property Office,01/02/2022,Accommodation,People Places & Serv Directorate,Government Property Agency,00000001/15072,"61,688.27",Not Applicable
Department for Business Energy and Industrial Strategy,Intellectual Property Office,03/02/2022,Accommodation,People Places & Serv Directorate,Government Property Agency,00000001/15263,"40,641.67",Not Applicable
Department for Business Energy and Industrial Strategy,Intellectual Property Office,03/02/2022,Accommodation,People Places & Serv Directorate,Government Property Agency,00000001/15263,"12,725.00",Not Applicable
Department for Business Energy and Industrial Strategy,Intellectual Property Office,03/02/2022,Accommodation,People Places & Serv Directorate,Government Property Agency,00000001/15263,"38,405.57",Not Applicable
Department for Business Energy and Industrial Strategy,Intellectual Property Office,03/02/2022,Accommodation,People Places & Serv Directorate,Government Property Agency,00000001/15263,"5,452.38",Not Applicable
Department for Business Energy and Industrial Strategy,Intellectual Property Office,03/02/2022,Accommodation,People Places & Serv Directorate,Government Property Agency,00000001/15263,22.87,Not Applicable
Department for Business Energy and Industrial Strategy,Intellectual Property Office,25/02/2022,Staff Costs,IT Directorate,Tria Recruitment Limited,TRX-1802,"8,073.60",Not Applicable
Department for Business Energy and Industrial Strategy,Intellectual Property Office,24/02/2022,Staff Costs,IT Directorate,Tria Recruitment Limited,TRX-1809,"8,073.60",Not Applicable
Department for Business Energy and Industrial Strategy,Intellectual Property Office,09/02/2022,Information Technology,IT Directorate,Tria Recruitment Limited,TRX-1848,"19,845.00",Not Applicable
Department for Business Energy and Industrial Strategy,Intellectual Property Office,28/02/2022,Accommodation,People Places & Serv Directorate,SECURE WEEE RECYCLING LIMITED T/A SECURE,125311,"2,341.80",Not Applicable
Department for Business Energy and Industrial Strategy,Intellectual Property Office,24/02/2022,Marketing & Publicity,Innovation Directorate,Axis12 Limited,INV-4414,"14,400.00",Not Applicable
Department for Business Energy and Industrial Strategy,Intellectual Property Office,21/02/2022,Supporting UK Business,Innovation Directorate,Taylor Vinters,4100412,"2,500.00",Not Applicable
Department for Business Energy and Industrial Strategy,Intellectual Property Office,21/02/2022,Supporting UK Business,Innovation Directorate,Adamson Jones IP Limited,22876,"2,500.01",Not Applicable
Department for Business Energy and Industrial Strategy,Intellectual Property Office,24/02/2022,Marketing & Publicity,Innovation Directorate,Pink Link Ladies,PLL545,"1,800.00",Not Applicable
Department for Business Energy and Industrial Strategy,Intellectual Property Office,03/02/2022,Supporting UK Business,Innovation Directorate,Maucher Jenkins,551926,"2,500.00",Not Applicable
Department for Business Energy and Industrial Strategy,Intellectual Property Office,11/02/2022,Information Technology,IT Directorate,Cloudflare Inc,CI-78121,"6,973.84",Not Applicable
Department for Business Energy and Industrial Strategy,Intellectual Property Office,11/02/2022,Information Technology,IT Directorate,Cloudflare Inc,CI-78281,"6,973.84",Not Applicable
Department for Business Energy and Industrial Strategy,Intellectual Property Office,11/02/2022,Information Technology,IT Directorate,Cloudflare Inc,CI-83087,"7,347.84",Not Applicable
Department for Business Energy and Industrial Strategy,Intellectual Property Office,11/02/2022,Information Technology,IT Directorate,Cloudflare Inc,CI-88447,"7,347.84",Not Applicable
Department for Business Energy and Industrial Strategy,Intellectual Property Office,03/02/2022,Staff Costs,IT Directorate,Software & Support Media Ltd,16803,"2,588.76",Not Applicable
Department for Business Energy and Industrial Strategy,Intellectual Property Office,03/02/2022,Marketing & Publicity,Innovation Directorate,TES Global Limited,INVTES00211595,"6,600.00",Not Applicable
Department for Business Energy and Industrial Strategy,Intellectual Property Office,04/02/2022,Supporting UK Business,Innovation Directorate,Kate Butler IP Limited,012022CWTIAX01,"5,000.00",Not Applicable
Department for Business Energy and Industrial Strategy,Intellectual Property Office,03/02/2022,Supporting UK Business,Innovation Directorate,Kate Butler IP Limited,012022FSLIAX02,"5,000.00",Not Applicable
Department for Business Energy and Industrial Strategy,Intellectual Property Office,25/02/2022,Supporting UK Business,Innovation Directorate,Kate Butler IP Limited,022022MPLIAU01,"2,500.00",Not Applicable
Department for Business Energy and Industrial Strategy,Intellectual Property Office,02/02/2022,Office Machinery,People Places & Serv Directorate,Ricoh UK Ltd,101958746-,"34,885.09",Not Applicable
Department for Business Energy and Industrial Strategy,Intellectual Property Office,07/02/2022,Legal & Hearings,Trade Mark Directorate,Three New Square IP,INV-GP724,"1,440.00",Not Applicable
Department for Business Energy and Industrial Strategy,Intellectual Property Office,07/02/2022,Legal & Hearings,Trade Mark Directorate,Three New Square IP,INV-SB822,"2,346.00",Not Applicable
Department for Business Energy and Industrial Strategy,Intellectual Property Office,08/02/2022,Miscellaneous Expenses General,People Places & Serv Directorate,GoLexia Ltd,2001,"1,200.00",Not Applicable
Department for Business Energy and Industrial Strategy,Intellectual Property Office,03/02/2022,Supporting UK Business,Innovation Directorate,Panoramix Limited,280,"5,000.00",Not Applicable
Department for Business Energy and Industrial Strategy,Intellectual Property Office,03/02/2022,Supporting UK Business,Innovation Directorate,Panoramix Limited,291,"5,000.00",Not Applicable
Department for Business Energy and Industrial Strategy,Intellectual Property Office,15/02/2022,Supporting UK Business,Innovation Directorate,Panoramix Limited,319,600.00,Not Applicable
Department for Business Energy and Industrial Strategy,Intellectual Property Office,03/02/2022,Supporting UK Business,Innovation Directorate,Panoramix Limited,327,"2,500.00",Not Applicable
Department for Business Energy and Industrial Strategy,Intellectual Property Office,25/02/2022,Supporting UK Business,Innovation Directorate,Panoramix Limited,332,"2,500.00",Not Applicable
Department for Business Energy and Industrial Strategy,Intellectual Property Office,15/02/2022,Supporting UK Business,Innovation Directorate,Panoramix Limited,340,"3,068.00",Not Applicable
Department for Business Energy and Industrial Strategy,Intellectual Property Office,04/02/2022,Supporting UK Business,Innovation Directorate,Claines Limited (T/A The Intellectual Pr,INV-1042,"5,000.00",Not Applicable
Department for Business Energy and Industrial Strategy,Intellectual Property Office,25/02/2022,Supporting UK Business,Innovation Directorate,Dentons UK and Middle East LLP,91249692,"2,500.00",Not Applicable
Department for Business Energy and Industrial Strategy,Intellectual Property Office,11/02/2022,Staff Costs,People Places & Serv Directorate,IRG Advisors T/A Odgers Interim,21003620JRT84183,"21,105.00",Not Applicable
Department for Business Energy and Industrial Strategy,Intellectual Property Office,08/02/2022,Pay Costs,Projects,IRG Advisors T/A Odgers Interim,867088,"36,000.00",Not Applicable
Department for Business Energy and Industrial Strategy,Intellectual Property Office,11/02/2022,Miscellaneous Expenses General,People Places & Serv Directorate,Hut Six Security Limited,IPO003,"5,918.40",Not Applicable
Department for Business Energy and Industrial Strategy,Intellectual Property Office,15/02/2022,Supporting UK Business,Innovation Directorate,Concept IP Services Limited,INV-19159,"2,500.00",Not Applicable
Department for Business Energy and Industrial Strategy,Intellectual Property Office,25/02/2022,Supporting UK Business,Innovation Directorate,Cooley (UK) LLP,51141,"2,500.00",Not Applicable
Department for Business Energy and Industrial Strategy,Intellectual Property Office,03/02/2022,Legal & Hearings,Patent Directorate,Womble Bond Dickinson (UK) LLP,3611437,"1,762.19",Not Applicable
Department for Business Energy and Industrial Strategy,Intellectual Property Office,07/02/2022,Supporting UK Business,Innovation Directorate,Cleveland Scott York IP Ltd,53647,"4,864.80",Not Applicable
Department for Business Energy and Industrial Strategy,Intellectual Property Office,01/02/2022,Marketing & Publicity,Innovation Directorate,Kids Invent Stuff Ltd,IPO260122,"12,000.00",Not Applicable
Department for Business Energy and Industrial Strategy,Intellectual Property Office,18/02/2022,Information Technology,IT Directorate,Hewlett Packard International Bank DAC,4.00901E+11,"17,859.29",Not Applicable
Department for Business Energy and Industrial Strategy,Intellectual Property Office,18/02/2022,Information Technology,IT Directorate,Hewlett Packard International Bank DAC,4.00901E+11,"18,113.07",Not Applicable
Department for Business Energy and Industrial Strategy,Intellectual Property Office,03/02/2022,Supporting UK Business,Innovation Directorate,Inksters,21-0851,"4,800.00",Not Applicable
Department for Business Energy and Industrial Strategy,Intellectual Property Office,25/02/2022,Supporting UK Business,International Policy Directorate,Taylor Vinters Via LLC,220622,650.00,Not Applicable
Department for Business Energy and Industrial Strategy,Intellectual Property Office,24/02/2022,Pay Costs,IT Directorate,Allen Lane LTD,1215452,"4,907.52",Not Applicable
Department for Business Energy and Industrial Strategy,Intellectual Property Office,24/02/2022,Pay Costs,IT Directorate,Allen Lane LTD,1215936,"6,134.40",Not Applicable
Department for Business Energy and Industrial Strategy,Intellectual Property Office,24/02/2022,Pay Costs,IT Directorate,Allen Lane LTD,1216599,"6,134.40",Not Applicable
Department for Business Energy and Industrial Strategy,Intellectual Property Office,24/02/2022,Pay Costs,IT Directorate,Allen Lane LTD,1216894,"6,134.40",Not Applicable
Department for Business Energy and Industrial Strategy,Intellectual Property Office,28/02/2022,Pay Costs,IT Directorate,Allen Lane LTD,1217900,"6,134.40",Not Applicable
Department for Business Energy and Industrial Strategy,Intellectual Property Office,25/02/2022,Pay Costs,IT Directorate,Allen Lane LTD,1218325,"6,134.40",Not Applicable
Department for Business Energy and Industrial Strategy,Intellectual Property Office,02/02/2022,Pay Costs,Finance Directorate,Seymour John (Cardiff) Limited,507,"6,133.80",Not Applicable
Department for Business Energy and Industrial Strategy,Intellectual Property Office,14/02/2022,Pay Costs,Finance Directorate,Seymour John (Cardiff) Limited,508,"6,133.80",Not Applicable
Department for Business Energy and Industrial Strategy,Intellectual Property Office,16/02/2022,Pay Costs,Finance Directorate,Seymour John (Cardiff) Limited,509,"5,414.69",Not Applicable
Department for Business Energy and Industrial Strategy,Intellectual Property Office,28/02/2022,Pay Costs,Finance Directorate,Seymour John (Cardiff) Limited,510,"6,133.80",Not Applicable
Department for Business Energy and Industrial Strategy,Intellectual Property Office,25/02/2022,Supporting UK Business,Innovation Directorate,Strachan IP Ltd,INV-0095,"2,500.00",Not Applicable
Department for Business Energy and Industrial Strategy,Intellectual Property Office,21/02/2022,Supporting UK Business,Innovation Directorate,Mathys & Squire Consulting Ltd,INV-11295,"2,500.00",Not Applicable
Department for Business Energy and Industrial Strategy,Intellectual Property Office,14/02/2022,Other FA at Cost,IT Directorate,Teqex Ltd,INV-21194,"1,190.87",Not Applicable
Department for Business Energy and Industrial Strategy,Intellectual Property Office,10/02/2022,Other FA at Cost,IT Directorate,Vohkus Limited,IN30858391,"8,048.40",Not Applicable
Department for Business Energy and Industrial Strategy,Intellectual Property Office,18/02/2022,Accommodation,People Places & Serv Directorate,The Meeting Pod Co,TMP-172431,"8,220.00",Not Applicable
Department for Business Energy and Industrial Strategy,Intellectual Property Office,17/02/2022,Other FA at Cost,IT Directorate,Ballicom International,304357091,"11,934.82",Not Applicable
Department for Business Energy and Industrial Strategy,Intellectual Property Office,04/02/2022,Pay Costs,IT Directorate,Talent International Holdings PTY Limite,60917,"11,205.00",Not Applicable
Department for Business Energy and Industrial Strategy,Intellectual Property Office,07/02/2022,Staff Costs,People Places & Serv Directorate,International Centre for Parliamentary S,GE-3334,580.80,Not Applicable
Department for Business Energy and Industrial Strategy,Intellectual Property Office,11/02/2022,Miscellaneous Expenses General,International Policy Directorate,Federation of Indian Chambers of Commerc,7TI-JAN22-0319,750.45,Not Applicable
Department for Business Energy and Industrial Strategy,Intellectual Property Office,16/02/2022,Marketing & Publicity,Innovation Directorate,Evening Standard Limited,51453,"4,200.00",Not Applicable
Department for Business Energy and Industrial Strategy,Intellectual Property Office,16/02/2022,Marketing & Publicity,Innovation Directorate,Evening Standard Limited,51751,"4,200.00",Not Applicable
Department for Business Energy and Industrial Strategy,Intellectual Property Office,25/02/2022,Staff Costs,IT Directorate,CCI Credit Management Ltd,509189,"1,280.97",Not Applicable
Department for Business Energy and Industrial Strategy,Intellectual Property Office,28/02/2022,Supporting UK Business,Innovation Directorate,Bird & Bird LLP,637034,"2,500.00",Not Applicable
Department for Business Energy and Industrial Strategy,Intellectual Property Office,24/02/2022,Career Development Services,People Places & Serv Directorate,The Knowledge Academy,H57720220301rllvmcnxn,598.80,Not Applicable
Department for Business Energy and Industrial Strategy,Intellectual Property Office,24/02/2022,Network and infrastructure H/W,IT Directorate,Amznmktplace,H57720220226ikviblbqb,28.99,Not Applicable
Department for Business Energy and Industrial Strategy,Intellectual Property Office,24/02/2022,Career Development Services,People Places & Serv Directorate,Www.Cipr.Co.Uk,H57720220226lxciesvto,336.00,Not Applicable
Department for Business Energy and Industrial Strategy,Intellectual Property Office,23/02/2022,Office Stationery,People Places & Serv Directorate,Www.Duomo.Co.Uk,H57720220225nmbomogwf,548.16,Not Applicable
Department for Business Energy and Industrial Strategy,Intellectual Property Office,23/02/2022,Office Stationery,People Places & Serv Directorate,Amznmktplace,H57720220225othztkims,198.95,Not Applicable
Department for Business Energy and Industrial Strategy,Intellectual Property Office,23/02/2022,Network and infrastructure H/W,IT Directorate,Amznmktplace,H57720220225rtrlnlfdm,55.96,Not Applicable
Department for Business Energy and Industrial Strategy,Intellectual Property Office,21/02/2022,Overseas Patent Specifications,Patent Directorate,Spie Org,H57720220224bxnppbbfl,25.56,Not Applicable
Department for Business Energy and Industrial Strategy,Intellectual Property Office,12/02/2022,Books,IT Directorate,Ipo,H57720220224ctvwvufpu,-30.00,Not Applicable
Department for Business Energy and Industrial Strategy,Intellectual Property Office,12/02/2022,Books,Trade Mark Directorate,Ipo,H57720220224dekqqypys,-50.00,Not Applicable
Department for Business Energy and Industrial Strategy,Intellectual Property Office,12/02/2022,Books,Trade Mark Directorate,Ipo,H57720220224gciwntgoq,-170.00,Not Applicable
Department for Business Energy and Industrial Strategy,Intellectual Property Office,22/02/2022,Education Campaign,Innovation Directorate,Linkedin-758,H57720220224iwgbnlffu,88.42,Not Applicable
Department for Business Energy and Industrial Strategy,Intellectual Property Office,12/02/2022,Books,Trade Mark Directorate,Ipo,H57720220224kmqrxcgfr,-170.00,Not Applicable
Department for Business Energy and Industrial Strategy,Intellectual Property Office,21/02/2022,Overseas Patent Specifications,Patent Directorate,Spie Org,H57720220224safiuictn,19.17,Not Applicable
Department for Business Energy and Industrial Strategy,Intellectual Property Office,12/02/2022,Books,Trade Mark Directorate,Ipo,H57720220224vvayccmec,-170.00,Not Applicable
Department for Business Energy and Industrial Strategy,Intellectual Property Office,21/02/2022,Office Stationery,People Places & Serv Directorate,Amznmktplace,H57720220223dkctnrevx,22.48,Not Applicable
Department for Business Energy and Industrial Strategy,Intellectual Property Office,21/02/2022,Office Stationery,People Places & Serv Directorate,Amazon.Co.Uk,H57720220223juhjnamwt,42.00,Not Applicable
Department for Business Energy and Industrial Strategy,Intellectual Property Office,20/02/2022,Overseas Patent Specifications,Patent Directorate,Ipo,H57720220223mevmcymej,170.00,Not Applicable
Department for Business Energy and Industrial Strategy,Intellectual Property Office,20/02/2022,Overseas Patent Specifications,Patent Directorate,Ipo,H57720220223tdikjidlj,50.00,Not Applicable
Department for Business Energy and Industrial Strategy,Intellectual Property Office,18/02/2022,Office Stationery,People Places & Serv Directorate,Seton,H57720220222iynatgdbr,76.21,Not Applicable
Department for Business Energy and Industrial Strategy,Intellectual Property Office,18/02/2022,Overseas Patent Specifications,Patent Directorate,Institute Of Navigation,H57720220222owjwuwduk,26.73,Not Applicable
Department for Business Energy and Industrial Strategy,Intellectual Property Office,18/02/2022,Office Stationery,People Places & Serv Directorate,Quadient UK Ltd,H57720220222tcnmrekcq,403.18,Not Applicable
Department for Business Energy and Industrial Strategy,Intellectual Property Office,05/02/2022,Network and infrastructure H/W,Trade Mark Directorate,Ipo,H57720220219bzsyiljhd,-50.00,Not Applicable
Department for Business Energy and Industrial Strategy,Intellectual Property Office,05/02/2022,Network and infrastructure H/W,Projects,Ipo,H57720220219cbhmdcvqc,-170.00,Not Applicable
Department for Business Energy and Industrial Strategy,Intellectual Property Office,17/02/2022,Eyecare,People Places & Serv Directorate,Specsaversevougb-,H57720220219iemrbmygs,510.00,Not Applicable
Department for Business Energy and Industrial Strategy,Intellectual Property Office,05/02/2022,Books,IT Directorate,Ipo,H57720220219nygjyxnuu,-30.00,Not Applicable
Department for Business Energy and Industrial Strategy,Intellectual Property Office,05/02/2022,Network and infrastructure H/W,Trade Mark Directorate,Ipo,H57720220219okipkgujn,-50.00,Not Applicable
Department for Business Energy and Industrial Strategy,Intellectual Property Office,05/02/2022,Network and infrastructure H/W,Trade Mark Directorate,Ipo,H57720220219pyngobkhd,-50.00,Not Applicable
Department for Business Energy and Industrial Strategy,Intellectual Property Office,17/02/2022,Network and infrastructure H/W,IT Directorate,Sp * Labelzone,H57720220219qxqgetjvi,212.68,Not Applicable
Department for Business Energy and Industrial Strategy,Intellectual Property Office,05/02/2022,Network and infrastructure H/W,Trade Mark Directorate,Ipo,H57720220219ybdgnplpj,-50.00,Not Applicable
Department for Business Energy and Industrial Strategy,Intellectual Property Office,14/02/2022,Overseas Patent Specifications,Patent Directorate,Springer Customer Serv,H57720220218kmxpygmil,47.99,Not Applicable
Department for Business Energy and Industrial Strategy,Intellectual Property Office,16/02/2022,Education Campaign,Innovation Directorate,Linkedin-756,H57720220218rnprsmsrt,115.03,Not Applicable
Department for Business Energy and Industrial Strategy,Intellectual Property Office,15/02/2022,Perpetual Licences,IT Directorate,Digicert Inc,H57720220217brxsyrerz,453.34,Not Applicable
Department for Business Energy and Industrial Strategy,Intellectual Property Office,14/02/2022,Overseas Patent Specifications,Patent Directorate,Wiley,H57720220217dbqvhknww,32.00,Not Applicable
Department for Business Energy and Industrial Strategy,Intellectual Property Office,15/02/2022,Office Stationery,People Places & Serv Directorate,Amazon.Co.Uk,H57720220217hcuewfhwg,89.98,Not Applicable
Department for Business Energy and Industrial Strategy,Intellectual Property Office,15/02/2022,Office Furniture,People Places & Serv Directorate,Www.Insighthealthscreenin,H57720220217ljscnncxi,826.80,Not Applicable
Department for Business Energy and Industrial Strategy,Intellectual Property Office,15/02/2022,Office Stationery,People Places & Serv Directorate,Healthy Workstations Ltd,H57720220217smutpqzlq,130.80,Not Applicable
Department for Business Energy and Industrial Strategy,Intellectual Property Office,14/02/2022,Advertising Distribution,Innovation Directorate,Linkedin Ireland,H57720220216eldgakesm,39.52,Not Applicable
Department for Business Energy and Industrial Strategy,Intellectual Property Office,14/02/2022,Overseas Patent Specifications,Patent Directorate,Association For Computing,H57720220216nwjjvcsxk,11.43,Not Applicable
Department for Business Energy and Industrial Strategy,Intellectual Property Office,14/02/2022,Office Stationery,People Places & Serv Directorate,Broxap Ltd,H57720220216qvhnqmdus,737.88,Not Applicable
Department for Business Energy and Industrial Strategy,Intellectual Property Office,05/02/2022,Books,Patent Directorate,Ipo,H57720220215brxgshxpv,-5.00,Not Applicable
Department for Business Energy and Industrial Strategy,Intellectual Property Office,11/02/2022,Career Development Services,Innovation Directorate,Government Events,H57720220215clwftepmn,354.00,Not Applicable
Department for Business Energy and Industrial Strategy,Intellectual Property Office,18/01/2022,Overseas Patent Specifications,Patent Directorate,Ipo,H57720220215ehnjsjkwx,-50.00,Not Applicable
Department for Business Energy and Industrial Strategy,Intellectual Property Office,12/02/2022,Books,Patent Directorate,Ipo,H57720220215frndhmhou,5.00,Not Applicable
Department for Business Energy and Industrial Strategy,Intellectual Property Office,11/02/2022,Books,Innovation Directorate,Blackwells,H57720220215gfmemlphq,88.99,Not Applicable
Department for Business Energy and Industrial Strategy,Intellectual Property Office,12/02/2022,Books,Trade Mark Directorate,Ipo,H57720220215gfuhdbznn,50.00,Not Applicable
Department for Business Energy and Industrial Strategy,Intellectual Property Office,12/02/2022,Books,Trade Mark Directorate,Ipo,H57720220215gmelfnjby,170.00,Not Applicable
Department for Business Energy and Industrial Strategy,Intellectual Property Office,12/02/2022,Books,Trade Mark Directorate,Ipo,H57720220215gtnzuhsgq,170.00,Not Applicable
Department for Business Energy and Industrial Strategy,Intellectual Property Office,17/01/2022,Overseas Patent Specifications,Patent Directorate,Ipo,H57720220215gxldjgjly,-50.00,Not Applicable
Department for Business Energy and Industrial Strategy,Intellectual Property Office,18/01/2022,Overseas Patent Specifications,Patent Directorate,Ipo,H57720220215hpoebaodl,-170.00,Not Applicable
Department for Business Energy and Industrial Strategy,Intellectual Property Office,16/12/2021,Books,Patent Directorate,Ipo,H57720220215jqioehiyg,-20.00,Not Applicable
Department for Business Energy and Industrial Strategy,Intellectual Property Office,19/01/2022,Overseas Patent Specifications,Patent Directorate,Ipo,H57720220215mlcgqihhm,-170.00,Not Applicable
Department for Business Energy and Industrial Strategy,Intellectual Property Office,18/01/2022,Overseas Patent Specifications,Patent Directorate,Ipo,H57720220215moccogurb,-50.00,Not Applicable
Department for Business Energy and Industrial Strategy,Intellectual Property Office,11/02/2022,Overseas Patent Specifications,Patent Directorate,Association For Computing,H57720220215nvaxpguxo,11.42,Not Applicable
Department for Business Energy and Industrial Strategy,Intellectual Property Office,12/02/2022,Books,IT Directorate,Ipo,H57720220215qbkogvhwg,30.00,Not Applicable
Department for Business Energy and Industrial Strategy,Intellectual Property Office,13/02/2022,Education Campaign,Innovation Directorate,Linkedin-755,H57720220215vtbnkctbx,114.23,Not Applicable
Department for Business Energy and Industrial Strategy,Intellectual Property Office,12/02/2022,Books,Trade Mark Directorate,Ipo,H57720220215wkxpeytod,170.00,Not Applicable
Department for Business Energy and Industrial Strategy,Intellectual Property Office,10/02/2022,Education Campaign,Innovation Directorate,Ges Limited,H57720220213bexcutsnh,209.57,Not Applicable
Department for Business Energy and Industrial Strategy,Intellectual Property Office,09/02/2022,Overseas Patent Specifications,Patent Directorate,Wiley,H57720220213gxjcxiuek,32.02,Not Applicable
Department for Business Energy and Industrial Strategy,Intellectual Property Office,10/02/2022,Office Stationery,People Places & Serv Directorate,Amznmktplace,H57720220213pvplqafpj,39.99,Not Applicable
Department for Business Energy and Industrial Strategy,Intellectual Property Office,10/02/2022,Advertising Distribution,Innovation Directorate,Facebk *ala8mat6b2,H57720220213qmdskcjqv,13.60,Not Applicable
Department for Business Energy and Industrial Strategy,Intellectual Property Office,10/02/2022,Education Campaign,Innovation Directorate,Linkedin-754,H57720220213vpqfsnuit,131.56,Not Applicable
Department for Business Energy and Industrial Strategy,Intellectual Property Office,09/02/2022,Office Stationery,People Places & Serv Directorate,Amznmktplace,H57720220211itlqlokoi,5.89,Not Applicable
Department for Business Energy and Industrial Strategy,Intellectual Property Office,09/02/2022,Career Development Services,People Places & Serv Directorate,Amazon.Co.Uk,H57720220211mritssson,26.15,Not Applicable
Department for Business Energy and Industrial Strategy,Intellectual Property Office,09/02/2022,Advertising Distribution,Innovation Directorate,Facebk *ff9ulab7b2,H57720220211ttpcynaxc,40.00,Not Applicable
Department for Business Energy and Industrial Strategy,Intellectual Property Office,09/02/2022,Overseas Patent Specifications,Patent Directorate,Onepetro,H57720220211ypojuusel,21.35,Not Applicable
Department for Business Energy and Industrial Strategy,Intellectual Property Office,08/02/2022,Perpetual Licences,IT Directorate,Digicert Inc,H57720220210aylybvmma,600.88,Not Applicable
Department for Business Energy and Industrial Strategy,Intellectual Property Office,08/02/2022,Perpetual Licences,IT Directorate,Digicert Inc,H57720220210qwypeajte,600.88,Not Applicable
Department for Business Energy and Industrial Strategy,Intellectual Property Office,08/02/2022,Perpetual Licences,IT Directorate,Digicert Inc,H57720220210wfqfityhd,181.48,Not Applicable
Department for Business Energy and Industrial Strategy,Intellectual Property Office,08/02/2022,Advertising Distribution,Innovation Directorate,Linkedin-753,H57720220210xtksievyu,83.36,Not Applicable
Department for Business Energy and Industrial Strategy,Intellectual Property Office,07/02/2022,Education Campaign,Innovation Directorate,Linkedin-752,H57720220209tdtjqotur,106.68,Not Applicable
Department for Business Energy and Industrial Strategy,Intellectual Property Office,05/02/2022,Network and infrastructure H/W,Trade Mark Directorate,Ipo,H57720220208ihzcvajec,50.00,Not Applicable
Department for Business Energy and Industrial Strategy,Intellectual Property Office,05/02/2022,Network and infrastructure H/W,Trade Mark Directorate,Ipo,H57720220208irjjdmcjr,50.00,Not Applicable
Department for Business Energy and Industrial Strategy,Intellectual Property Office,06/02/2022,Office Stationery,People Places & Serv Directorate,Amznmktplace,H57720220208itsnlnuvw,27.95,Not Applicable
Department for Business Energy and Industrial Strategy,Intellectual Property Office,04/02/2022,Overseas Patent Specifications,Patent Directorate,Association For Computing,H57720220208kyguabhvt,11.41,Not Applicable
Department for Business Energy and Industrial Strategy,Intellectual Property Office,05/02/2022,Network and infrastructure H/W,Projects,Ipo,H57720220208lekhzkbmi,170.00,Not Applicable
Department for Business Energy and Industrial Strategy,Intellectual Property Office,04/02/2022,Career Development Services,Innovation Directorate,Government Events,H57720220208rbqcnyutp,354.00,Not Applicable
Department for Business Energy and Industrial Strategy,Intellectual Property Office,04/02/2022,Education Campaign,Innovation Directorate,Linkedin-751,H57720220208rifbippnr,44.09,Not Applicable
Department for Business Energy and Industrial Strategy,Intellectual Property Office,05/02/2022,Network and infrastructure H/W,Trade Mark Directorate,Ipo,H57720220208rlcnpmull,50.00,Not Applicable
Department for Business Energy and Industrial Strategy,Intellectual Property Office,05/02/2022,Books,Patent Directorate,Ipo,H57720220208stquutnqk,5.00,Not Applicable
Department for Business Energy and Industrial Strategy,Intellectual Property Office,05/02/2022,Network and infrastructure H/W,Trade Mark Directorate,Ipo,H57720220208vmzttjbod,50.00,Not Applicable
Department for Business Energy and Industrial Strategy,Intellectual Property Office,05/02/2022,Books,IT Directorate,Ipo,H57720220208xtogygjpd,30.00,Not Applicable
Department for Business Energy and Industrial Strategy,Intellectual Property Office,03/02/2022,Education Campaign,Innovation Directorate,Hobbycraft,H57720220205cqczhgdqg,17.50,Not Applicable
Department for Business Energy and Industrial Strategy,Intellectual Property Office,03/02/2022,Advertising Distribution,Innovation Directorate,Linkedin Ireland,H57720220205dcheissvj,83.48,Not Applicable
Department for Business Energy and Industrial Strategy,Intellectual Property Office,03/02/2022,Advertising Distribution,Innovation Directorate,Ges Limited,H57720220205dilwrvbaf,586.26,Not Applicable
Department for Business Energy and Industrial Strategy,Intellectual Property Office,03/02/2022,Advertising Distribution,Innovation Directorate,Facebk *9x82wbk7b2,H57720220205qjirgfpmm,40.00,Not Applicable
Department for Business Energy and Industrial Strategy,Intellectual Property Office,03/02/2022,Education Campaign,Innovation Directorate,Tesco Store 2931,H57720220205vvjclopdk,3.50,Not Applicable
Department for Business Energy and Industrial Strategy,Intellectual Property Office,02/02/2022,Office Stationery,People Places & Serv Directorate,Amznmktplace,H57720220204abkojbqgm,27.00,Not Applicable
Department for Business Energy and Industrial Strategy,Intellectual Property Office,02/02/2022,Career Development Services,Finance Directorate,Www.Cips.Org,H57720220204jssvxizec,346.95,Not Applicable
Department for Business Energy and Industrial Strategy,Intellectual Property Office,02/02/2022,Entertainment,Innovation Directorate,Browns,H57720220204jwwuenqid,-318.00,Not Applicable
Department for Business Energy and Industrial Strategy,Intellectual Property Office,02/02/2022,Network and infrastructure H/W,IT Directorate,Amznmktplace,H57720220204murjatqzp,41.50,Not Applicable
Department for Business Energy and Industrial Strategy,Intellectual Property Office,01/02/2022,Other,People Places & Serv Directorate,Alpha Electronics(Wales),H57720220203bdtpdclqs,60.00,Not Applicable
Department for Business Energy and Industrial Strategy,Intellectual Property Office,01/02/2022,Network and infrastructure H/W,IT Directorate,Sp * Datazonedirect,H57720220203hjcrinppl,207.60,Not Applicable
Department for Business Energy and Industrial Strategy,Intellectual Property Office,01/02/2022,Other,People Places & Serv Directorate,Agora Publications,H57720220203kaoglnvbj,31.61,Not Applicable
Department for Business Energy and Industrial Strategy,Intellectual Property Office,01/02/2022,Overseas Patent Specifications,Patent Directorate,The Optical Society-Osa,H57720220203loowcgayd,26.93,Not Applicable
Department for Business Energy and Industrial Strategy,Intellectual Property Office,01/02/2022,T&S UK,People Places & Serv Directorate,Www.Hxpayments.Com,H57720220203qkmvvlqkz,60.99,Not Applicable
Department for Business Energy and Industrial Strategy,Intellectual Property Office,31/01/2022,Overseas Patent Specifications,Patent Directorate,Spie Org,H57720220203udqrbijle,25.75,Not Applicable
Department for Business Energy and Industrial Strategy,Intellectual Property Office,01/02/2022,Advertising Distribution,Innovation Directorate,Linkedin-750,H57720220203ypqygpbzg,38.71,Not Applicable
Department for Business Energy and Industrial Strategy,Intellectual Property Office,01/02/2022,Office Stationery,People Places & Serv Directorate,Healthy Workstations Ltd,H57720220203yzgkypvbt,147.20,Not Applicable
Department for Business Energy and Industrial Strategy,Intellectual Property Office,01/02/2022,Office Stationery,People Places & Serv Directorate,Ebay Commerce UK Ltd,H57720220203zewwqihox,65.99,Not Applicable
Department for Business Energy and Industrial Strategy,Intellectual Property Office,31/01/2022,Advertising Distribution,Innovation Directorate,Linkedin-750,H57720220202gylvvybce,66.88,Not Applicable
Department for Business Energy and Industrial Strategy,Intellectual Property Office,31/01/2022,Books,Copyright and Enforcement Directorate,Sp * The Law Reviews,H57720220202jymlacywy,350.00,Not Applicable
Department for Business Energy and Industrial Strategy,Intellectual Property Office,31/01/2022,Advertising Distribution,Innovation Directorate,Facebk *k365l9t7b2,H57720220202pgukfrhwx,40.00,Not Applicable
